Workbook

Sheet Instructions
C1: THIS SHOULD COST MODEL BUILD TEMPLATE IS FOR GUIDANCE ONLY. PLEASE REMOVE GCF BRANDING AND UPDATE TO REFLECT THE BRANDING OF YOUR CONTRACTING AUTHORITY PRIOR TO POPULATING IT.
C2: =cstProjectName -> SCM Build Template
C3: =MID(CELL("filename",A1),FIND("]",CELL("filename",A1))+1,256)&" Sheet" -> Instructions Sheet
C4: =IF(ISBLANK(cstProtectiveMarking),"",cstProtectiveMarking) -> OFFICIAL
C5: =HYPERLINK("#''Contents''!A1",sysChkWord) -> All Checks OK
C6: =HYPERLINK("#'Contents'!A1","Click for Contents") -> Click for Contents
A8: =SUM(A9:A426) -> 0 | B8: =SUM(B9:B426) -> 0
C9: This Template will need to be customised to produce a Should Cost Model - completing this Template provides no guarantee of model quality (including outputs).
D10: 1 Introduction
E12: 1.1 The Outsourcing Playbook, Construction Playbook and SCM Requirements
E14: Overview
G15: The requirement to produce a Should Cost Model (SCM) when making sourcing decisions and contracting outside suppliers for the delivery of public services is set out within the Sourcing Playbook (see Chapter 3) and for public works projects or programmes within the Construction Playbook (see Chapter 5).
G17: The Sourcing and Construction Playbooks set out when contracting authorities should produce an SCM, which functions are responsible for them (see Ownership, Knowledge, Understanding and Awareness framework), and how SCMs fit within the procurement lifecycle. The accompanying SCM Guidance Note provides high-level guidance on SCMs. It is part of a set of Cabinet Office guidance relating to SCMs:
G19: · SCM Guidance Note - outlines what SCMs are, when and why contracting authorities should produce them, and key considerations around developing and/or procuring them;
G20: · SCM Development Guidance - provides contracting authorities with guidance on using internal resources to design, develop, test and manage SCMs; and
G21: · SCM Technical Build Guidance - the guidance in this publication is based on good practice principles for building SCMs. It is technical in nature and aimed at people who will be building SCMs.
G23: A number of practical Tools and Templates have also been produced by Cabinet Office to support the development of SCMs and to help reinforce good practice approaches.
G25: You should consult the Cabinet Office Sourcing Programme for further information or before planning an SCM for complex services, projects or programmes via sourcing.programme@cabinetoffice.gov.uk.
E27: Reference Documents
G28: - The Sourcing Playbook
G29: - The Construction Playbook
G30: - Should Cost Modelling Guidance Note
G31: - SCM Development Guidance
G32: - SCM Technical Build Guidance
E34: 1.2 The Should Cost Model Build Template
G36: This Should Cost Model Build Template ("the Template" or "this Template") forms part of a suite of Templates and Tools produced by the Sourcing Programme to support the development of SCMs and help reinforce good practice.
G37: This Template is designed to speed up model development, drive consistency and reinforce governance & control.
G38: This Template is not a complete or generic SCM and will need to be customised to produce an SCM.
G39: This Template includes examples of an Input sheet ('iInputExample'), a Calculation sheet ('cCalcExample') and an Output sheet ('oSummaryExample'). These sheets are for illustrative purposes only and show how a model could be laid out.
G40: The illustrative example sheets ('iInputExample', 'cCalcExample' and 'oSummaryExample') should be deleted when the SCM is developed.
G42: It is recommended that the users of this Template familiarise themselves with these instructions (in particular the Section on Errors and Warnings) and the SCM Technical Build Guidance before commencing an SCM build. The SCM Technical Build Guidance sets out good practice principles for the design and technical construction of SCMs.
D44: 2 Template Overview
E46: 2.1 What is included in this 'Instructions' Sheet
G48: This 'Instructions' sheet details how to use this Template and covers the following:
G49: - Arrangement of Template (Section 2.2)
G50: - Details on use of VBA (Section 2.3)
G51: - Steps on how to customise the Template (Section 3)
G52: - Model Development Principles (Section 4)
G53: - Errors and Warnings (Section 5)
G54: - Excel 'How To' Guide (Section 6)
E56: 2.2 Arrangement of Template
E58: Sections within the Template
G59: This Template is split into the following Sections:
G60: - Administrative sheets - these are coloured Grey.
G61: - Input sheets - these are coloured Pale Yellow and prefaced with an 'i'. They contain only inputs to the model. They are to be devoid of any form of calculations that form part of the model’s overall logic.
G62: - Calculation sheets – these are coloured Green and prefaced with a 'c'. They contain only calculations and no inputs other than formulas that ‘call-up’ the inputs to perform calculations on them.
G63: - Output sheets – these are coloured Dark Blue and prefaced with an 'o'. They contain links or ‘call-ups’ to calculations or inputs in order to display outputs. They may also include graphs or charts. They should not contain inputs or calculations (other than basic summary calculations).
G64: - Template sheets - these are coloured in Light Blue and are used as a basis for creating other worksheets in this Template.
G66: Section Break sheets (denoted with a ">>" such as 'Inputs>>' etc.) are used to highlight where different Sections of the model begin.
G67: Please see the Technical Build Guidance for further details on model structure.
G68: Further details on this Template’s sheet naming conventions are included below (Section 3.4).
E70: Illustrative Examples
G71: Illustrative examples of an Input sheet ('iInputExample'), a Calculation sheet ('cCalcExample') and an Output sheet ('oSummaryExample') are included within this Template.
G72: The illustrative example sheets include call outs sign posting key features of the sheets.
G73: These sheets are to be deleted prior to finalisation of any SCM built using this Template.
E75: Cell Styles
G76: Cell styles are used to help denote the types of cells within the Template (e.g. input cells are yellow in colour and have a border around them). There are styles for inputs, links, calculations and outputs. The full set of styles, including details of how to apply them, can be found in the 'UserGuideExample' sheet within this Template.
G77: Please see the Technical Build Guidance for further details on use of cell styles.
E79: Error Check Network
G80: It is good practice to include error checks within a model and to incorporate them into a network. See Technical Build Guidance for further details.
G81: Each sheet within this template has an Error Check Network (columns A and B). Cells A8 and B8 at the top of each sheet summarise the error checks and warnings for the entire sheet.
G82: The Template has a built-in Master Error Check which summaries the individual worksheet checks. This is located on the ''Contents'' sheet.
G83: When new sheets are added / sheets are deleted from the Template, the Master Error Check on the ''Contents'' sheet will need to be updated manually.
G84: The Master Error Check is displayed at the top of each worksheet in the Template. It will show "All Checks OK" if no Errors or Warnings are flagged otherwise it will display how many Errors/Alerts exist in the Template.
G85: Further details on Errors and Warnings can be found in the "Errors and Warnings" Section below. | H85: Errors and Warnings
G87: It is recommended that users of this Template familiarise themselves with it, including it's instructions and its associated styles before proceeding with customisation and SCM development.
E89: 2.3 Use of VBA
G91: This Template makes use of VBA (macros) for the following:
G92: - Version Control Log (see 'VersionControlLog' sheet)
G93: - Generating a list of Named Ranges (see 'SysConfig' sheet)
G95: VBA (macros) will need to be enabled for these to work (see Section 6 for details), although users of this Template will not be required to update or modify the VBA in order to use the Template as intended.
G96: If the VBA is compromised or cannot be run the automated aspects of this Template will need to be performed manually by the user.
D98: 3 Template Customisation
E100: 3.1 Customisation steps
G102: The following 17 Steps should be taken when customising this Template and developing an SCM. Where relevant, further details of these steps are included in the following Sections of this guidance and hyperlinked on the right hand side. Links to other relevant sheets are also included in the table below:
F104: # | G104: Step | H104: Further Details
F105: 1 | G105: Read this 'Instructions' sheet, gain familiarity with the content and structure of this Template, and look through the illustrative example input, calculation and output sheets.
F106: 2 | G106: Complete the 'General Details' Section on the 'SysConfig' sheet, including the Project Name, IMA Score, Protective Marking etc. | H106: General Details
F107: 3 | G107: Determine the Model 'Start date' and update the current start date (01-Apr-21) in the 'Setup' Section on the 'SysConfig' sheet with the new start date. | H107: Start Date
F108: 4 | G108: Customise the model Timelines (see below for further details). | H108: Customise Timelines
F109: 5 | G109: Customise the 'TimeTemp' Template worksheet (see below for further details). | H109: Customise TimeTemp
F110: 6 | G110: Setup the input sheets needed (see below for further details on adding new sheets and sheet naming conventions). | H110: Adding New Sheets
F111: 7 | G111: Setup the calculation sheets needed (see below for further details on adding new sheets and sheet naming conventions). | H111: Adding New Sheets
F112: 8 | G112: Setup the output sheets needed (see below for further details on adding new sheets and sheet naming conventions). | H112: Adding New Sheets
F113: 9 | G113: Update the ''Contents'' sheet, including the Master Error Check (see below for further details). | H113: Updating the Contents Sheet
F114: 10 | G114: Update the Model Map on the ''Contents'' sheet to reflect the worksheets and data flows within the SCM (see section 3.5 below). | H114: Updating the Contents Sheet
F115: 11 | G115: Develop the model in-line with good practice (see Technical Build Guidance) and the principles set out in Section 4 below. | H115: Section 4
F116: 12 | G116: Prior to finalising the model, delete the following sheets (see below for further details): | H116: Deleting Worksheets
G117: - Instructions (this sheet)
G118: - iInputExample
G119: - cCalcExample
G120: - oSummaryExample
G121: - Templates>>
G122: - TimeTemp
G123: - BlankTemp
F124: 13 | G124: Update the ''Contents'' sheet, including the Master Error Check (see below for further details) and Model Map. | H124: Updating the Contents Sheet
F125: 14 | G125: Check that the ''Contents'' sheet includes all relevant sheets. | H125: Contents sheet
F126: 15 | G126: Check that the Master Error Check on the ''Contents'' sheet is correctly linked to the sheet-level error checks on each sheet. | H126: Contents sheet
F127: 16 | G127: Update the Version Control Log to reflect the current version of the SCM - see 'VersionControlLog' sheet for more details. | H127: VersionControlLog Sheet
F128: 17 | G128: Update the 'UserGuideExample' sheet as required (see below for further details). | H128: Updating the User Guide Sheet
E130: 3.2 Step 4 - Customising the model Timelines
E132: Guiding principles
G133: SCMs should use a consistent timeline across all sheets that include a timeline (see Technical Build Guidance for further details). This means that:
G134: 1) The timeline periods should be in consistent columns on every sheet (e.g. Column AA = 01Apr21:30Apr21).
G135: 2) The timeline placement should be consistent on every sheet (e.g. Rows 2:7 on every sheet).
G136: 3) An SCM should have a ‘master’ timeline (e.g. 'SysTime' sheet) that all other timelines in the workbook are linked to. This is so that the timeline is only ever updated in one place (the master) and all other timelines that link to it automatically replicate it.
E138: Template Timelines
G139: This Template has been configured to include a Monthly and an Annual timeline.
G140: Note, if a timeline other than Monthly or Annual (such as a daily, weekly or a 4-4-5 week timeline) is needed, the existing timeline on the 'SysTime' sheet will need to be redeveloped.
G141: The timeline in 'SysTime' is formula based and can be extended by copying existing formulae across the timeline.
E143: Current Timeline Set Up - 'SysTime' Sheet
G144: The Timelines are contained on the 'SysTime' sheet in rows 2 to 7.
G145: The monthly timeline starts in column AA and covers 36 periods (3 years).
G146: The annual timeline starts in column BL and covers 3 periods (3 years).
G147: The timeline start date is currently set to 01/04/2021 (It can be changed in Cell F22 on the 'SysConfig' sheet). | H147: Start Date
E149: Customising the master Timeline (on the 'SysTime' sheet)
G150: The master timeline should be customised on the 'SysTime' sheet.
G152: When customising this Template determine if:
G153: A) Both an Annual and Monthly timeline are required in the model;
G154: B) Only an Annual timeline is required in the model;
G155: C) Only a Monthly timeline is required in the model;
G156: D) Another combination or granularity of timeline is required.
G158: A) Both an Annual and Monthly timeline is required in the model
G159: The Template is currently set up to include both a monthly and an annual timeline.
G160: Check the timelines cover the required number of periods (currently set up for 36 monthly periods and 3 annual periods).
G161: If more/less periods are required, these can be added/deleted by inserting/removing columns in the timeline and copying the formula across to maintain a consistent formula across the full timeline.
G162: Make sure both the monthly and annual timelines are extended to match the same number of periods (e.g. if the annual timeline is 4 years, 48 months are included in the monthly timeline).
G163: Columns to the right of the timeline can be hidden.
G165: B) Only an Annual timeline is required in the model
G166: The Template is currently set up to include both a monthly and an annual timeline.
G167: Delete the columns of the monthly timeline so that the Annual Timeline starts in column AA.
G168: If more/less periods are required, these can be added/deleted by inserting/removing columns in the timeline and copying the formula across to maintain a consistent formula across the full timeline.
G169: Columns to the right of the timeline can be hidden.
G171: C) Only a Monthly timeline is required in the model
G172: The Template is currently set up to include both a monthly and an annual timeline.
G173: Delete the columns of the Annual timeline. The Monthly Timeline should start in column AA.
G174: If more/less periods are required, these can be added/deleted by inserting/removing additional columns in the timeline and copying the formula across to maintain a consistent formula across the full timeline.
G175: Columns to the right of the timeline can be hidden.
G177: D) Another combination or granularity of timeline is required in the model
G178: In these instances the timeline(s) will need to be configured manually.
G179: The timelines should be set up as required, and entered within rows 2 to 7 of the 'SysTime' Sheet.
G180: Columns to the right of the timeline can be hidden.
G182: It is important to confirm the 'TimeTemp' sheet accurately reflects the timeline(s) required before proceeding further with SCM development as this TimeTemp sheet may be duplicated multiple times (see Section 3.3 and 3.4).
E184: 3.3 Step 5 - Customising the 'TimeTemp' sheet
G186: Once the timeline(s) has been configured on the 'SysTime' sheet (see Step 4 for further details), the timeline(s) should be linked to the 'TimeTemp' sheet.
G187: Rows 2 to 7 from column Z onwards on the 'TimeTemp' sheet should be linked to Rows 2 to 7 from column Z onwards on the 'SysTime' sheet. The number of columns that will need to be linked will depend on the number of periods in the timeline on the 'SysTime' sheet.
G188: An illustration of timeline linking can be seen in the 'TimeTemp' sheet - the timeline on this sheet links to master timeline on the ‘SysTime’ sheet. The master timeline is currently set up in monthly and annual format and covers a three year (36 month) period.
G190: It is important to confirm the 'TimeTemp' sheet accurately reflects the timeline(s) required before proceeding further with SCM development.
E192: 3.4 Steps 6-8 - Adding New Sheets
E194: Guiding Principles
G195: All Input, Calculation and Output sheets should be set up by copying one of the Template sheets.
G196: This will help to ensure that the Model is consistent.
G197: All timebound sheets (ones which include the model timeline(s)) should be based on the 'TimeTemp' sheet.
G198: Sheets which are not timebound should be based on the 'BlankTemp' sheet.
E200: Sheet Naming Conventions
G201: Sheet names should be descriptive but kept as short as possible.
G202: Sheet names should not contain spaces in the name (e.g. use 'iStaffInputs' or iStaff_Inputs' rather than 'i Staff Inputs').
G203: Include a ">>" in the name of a Section break sheet.
G204: Input sheets should be prefaced with an 'i' e.g. 'iStaff'.
G205: Calculation sheets should be prefaced with an 'c' e.g. 'cStaff'.
G206: Output sheets should be prefaced with an 'o' e.g. 'oDashboard'.
E208: How to Add a Sheet
G209: Right click the mouse on the tab name of either of the Template sheets and select "Move or Copy…"
G210: The "Move or Copy" dialog box will appear and the user should select the required Template sheet to copy and tick the "Create a copy" check box at the bottom of the dialog box.
G211: An illustration of this can be seen to the right of these instructions.
G212: Once the sheet has been copied it should be dragged to the correct location in the model, renamed and the tab colour updated depending on whether it is an Input, Calculation or Output sheet.
G213: To rename a sheet right click on the sheet and click 'Rename'. See above for good practice guidance on Sheet Naming Conventions.
G214: To change the Colour of a sheet, right click on the tab and hover over the 'Tab Color' selection and choose the appropriate colour (e.g. yellow for Input sheets).
G215: After adding a new sheet the Contents (inc. Master Error Check) will need to be updated (see Section below for further details).
E217: 3.5 Step 9 and 13 - Updating the Contents Sheet
G219: The ''Contents'' sheet should be updated to reflect the sheets contained within this template after customisation/during SCM development.
G220: This should be done whenever a new sheet is created (by copying a Template sheet), a sheet is deleted or renamed and if the order of sheets is changed.
G221: When updating the ''Contents'' sheet, insert/delete rows as required, above the "INSERT NEW ROWS ABOVE THIS ROW" banner and link columns H and I to the error/warning checks on the sheet (cells A8 and B8).
G222: Update the hyperlink in column F with a hyperlink the relevant sheet.
G223: There is a Section to include a Model Map on the ''Contents'' sheet. This shows the flow of the model and how different sheets interact.
G224: To add new sheets to the model map, copy one of the existing sheet objects and rename the shape, change the colour as required and update the shape hyperlink to the correct sheet. The Hyperlink is updated by right clicking on the shape.
G225: Note, in order for the Hyperlinks back to the ''Contents'' sheet to remain functional, the ''Contents'' sheet should not be renamed. If the ''Contents'' sheet is renamed, the hyperlinks back to it in other sheets will need to be updated (see 'Click for Contents' in cell C6 at the top of each sheet).
E227: 3.6 Step 17 - Updating the User Guide
G229: Not all Models require a User Guide. The requirement for a User Guide, including its breadth and depth of coverage, should be agreed as part of model scoping.
G230: If an in-model User Guide is required, this should be developed and included on the 'UserGuideExample' sheet within this Template.
G231: When completing the User Guide consider moving some of the content of this 'Instructions' sheet to the 'UserGuideExample' sheet before this sheet is deleted.
D233: 4 Model Development
E235: Guiding Principles
G236: A consistent approach should be followed when developing models and SCM guidance should be adhered to.
G237: Refer to the Technical Build Guidance for full details.
G239: Below are some 'Key Principles' to consider when developing an SCM:
E241: Use of Cell Styles
G242: A guide to the Cell Styles that are set up and used within this Template is included on the 'UserGuideExample' sheet.
G243: Appropriate cell styles should be applied and used as the SCM is developed. This will help to reduce the risk of errors during model development and use, and help to ensure consistency.
E245: Updating the Contents Page
G246: The Contents Page should be updated whenever a new sheet is created, a sheet is deleted or renamed, and if the order of sheets is changed (see Section 3.5 for further details).
E248: Named Ranges
G249: It is encouraged to limit the use of 'Named Ranges' where possible, although it is recognised their use will be required.
G250: When using 'Named Ranges' it is advised to keep a record of these in the 'SysConfig' sheet under the 'Named Ranges List' Section.
G251: This Template includes a VBA Macro that can be used to automatically update the Named Ranges List on the 'SysConfig' sheet.
G252: This VBA Macro can be run by clicking the 'Update Named Range List' button on the 'SysConfig' sheet.
G253: It is recommended to run this macro each time new Named Ranges are added to the model.
G254: It is recommended to include a red dotted line around Named Ranges so that it is clear where they exist - see style guide on the 'UserGuideExample' sheet for more details.
G255: Further details on the use of Named Ranges, including naming conventions, is available in the Technical Build Guidance.
E257: Hiding Columns/Rows
... 100 more rows

Sheet Contents
C1: THIS SHOULD COST MODEL BUILD TEMPLATE IS FOR GUIDANCE ONLY. PLEASE REMOVE GCF BRANDING AND UPDATE TO REFLECT THE BRANDING OF YOUR CONTRACTING AUTHORITY PRIOR TO POPULATING IT.
C2: =cstProjectName -> SCM Build Template
C3: =MID(CELL("filename",A1),FIND("]",CELL("filename",A1))+1,256)&" Sheet" -> Contents Sheet
C4: =IF(ISBLANK(cstProtectiveMarking),"",cstProtectiveMarking) -> OFFICIAL
C5: =HYPERLINK("#'Contents'!A1",sysChkWord) -> All Checks OK
A8: =SUM(A9:A61) -> 0 | B8: =SUM(B9:B61) -> 0
D10: Contents
E12: Worksheet | F12: Link | G12: Sheet Description | H12: Errors | I12: Warnings
E13: Instructions | F13: Link | G13: This sheet provides instructions on how to use this this Template - to be deleted prior to finalising the model | H13: =Instructions!A8 -> 0 | I13: =Instructions!B8 -> 0
E14: Contents | F14: Link | G14: Contents sheet listing all worksheets in model, listing error checks and containing model map | H14: =A8 -> 0 | I14: =B8 -> 0
E15: UserGuideExample | F15: Link | G15: Template User Guide - to be updated as development progresses | H15: =UserGuideExample!A8 -> 0 | I15: =UserGuideExample!B8 -> 0
E16: VersionControlLog | F16: Link | G16: Template Version Control Log to keep a record of changes | H16: =VersionControlLog!A8 -> 0 | I16: =VersionControlLog!B8 -> 0
E17: BoA-DL | F17: Link | G17: Example Book of Assumptions / Data Log sheet | H17: ='BoA-DL'!A8 -> 0 | I17: ='BoA-DL'!B8 -> 0
E18: iInputExample | F18: Link | G18: Illustrative example of an input sheet - to be deleted prior to finalising the model | H18: =iInputExample!A8 -> 0 | I18: =iInputExample!B8 -> 0
E19: cCalcExample | F19: Link | G19: Illustrative example of an calculation sheet - to be deleted prior to finalising the model | H19: =cCalcExample!A8 -> 0 | I19: =cCalcExample!B8 -> 0
E20: oSummaryExample | F20: Link | G20: Illustrative example of an output sheet - to be deleted prior to finalising the model | H20: =oSummaryExample!A8 -> 0 | I20: =oSummaryExample!B8 -> 0
E21: TimeTemp | F21: Link | G21: Template sheet including timeline - to be copied as a basis for setting up new worksheets | H21: =TimeTemp!A8 -> 0 | I21: =TimeTemp!B8 -> 0
E22: BlankTemp | F22: Link | G22: Template sheet without timeline - to be copied as a basis for setting up new worksheets | H22: =BlankTemp!A8 -> 0 | I22: =BlankTemp!B8 -> 0
E23: SysConfig | F23: Link | G23: Model setup sheet including lists, named ranges and constants | H23: =SysConfig!A8 -> 0 | I23: =SysConfig!B8 -> 0
E24: SysTime | F24: Link | G24: The model timeline is generated on this sheet | H24: =SysTime!A8 -> 0 | I24: =SysTime!B8 -> 0
E25: INSERT NEW ROWS ABOVE THIS ROW
E27: Master Control Check | G27: Update the Contents and Error Check summaries when new sheets are added/existing sheets are deleted | H27: =IFERROR(SUM(H12:H25),1) -> 0 | I27: =IFERROR(SUM(I12:I25),1) -> 0
D29: Model Map
E31: The map below indicates the flow between worksheets within the Model
D61: END OF WORKSHEET - INSERT ROWS ABOVE

Sheet UserGuideExample
C1: THIS SHOULD COST MODEL BUILD TEMPLATE IS FOR GUIDANCE ONLY. PLEASE REMOVE GCF BRANDING AND UPDATE TO REFLECT THE BRANDING OF YOUR CONTRACTING AUTHORITY PRIOR TO POPULATING IT.
C2: =cstProjectName -> SCM Build Template
C3: =MID(CELL("filename",A1),FIND("]",CELL("filename",A1))+1,256)&" Sheet" -> UserGuideExample Sheet
C4: =IF(ISBLANK(cstProtectiveMarking),"",cstProtectiveMarking) -> OFFICIAL
C5: =HYPERLINK("#'Contents'!A1",sysChkWord) -> All Checks OK
C6: =HYPERLINK("#'Contents'!A1","Click for Contents") -> Click for Contents
A8: =SUM(A9:A233) -> 0 | B8: =SUM(B9:B233) -> 0
D10: 1 Overview
E12: This sheet forms the User Guide for this model. It includes details of:
E13: - General Details
E14: - Model Overview
E15: - Model Style Guide
E16: - Use of Columns
E17: - Definitions
E18: This sheet should be updated as required throughout the model development process and may require customisation depending on what is included within the model
E19: An example structure, with illustrative content in [square brackets] is detailed below
D21: 2 General Details
E23: Model Developer: | F23: =SysConfig!F15 -> TBC - update on 'SysConfig' sheet
E24: Contact Details: | F24: =SysConfig!F16 -> sourcing.programme@cabinetoffice.gov.uk
E25: Model SRO: | F25: =SysConfig!F17 -> TBC - update on 'SysConfig' sheet
E27: Model Description: | F27: This section should include a brief description of the model and it's purpose
E28: Model Limitations: | F28: This section should include a description of the model's key limitations
E29: Quality Assurance: | F29: This section should include references to the QA Report/QA undertaken
E30: QA Limitations: | F30: This section should detail any limitations arising from QA and testing
D32: 3 Model Overview
E34: 3.1 Navigation
E36: This section should include information on model navigation. For example:
E37: [The model's 'Contents' tab lists and provides a high level summary of each of the worksheets within the model.
E38: Each listed worksheet is hyperlinked to aid navigation (click on the 'Link' adjacent to the worksheet's name).
E39: All worksheets within the model are colour coded to aid navigation (see Model Map on the 'Contents' tab):
E40: Input sheets are Yellow
E41: Calculation sheets are Green
E42: Output sheets are Blue
E43: Admin/Control Sheets are Grey
E44: Worksheets are organised into sections and each section has a divider sheet (">>" at the end of the tab name).
E45: Within each worksheet within the model the cell styles set out below (see 'Model Style Guide') have been applied.
E46: The 'Click for Contents' hyperlink within the header of each worksheet returns the user to the 'Contents' tab.
E47: A description of each of the sheets within the model is provided below.
E48: etc.]
E50: 3.2 Error Checks
E52: This section should include information on in-model error and warning checks. For example:
E53: [The model includes an in-built error and warning check network.
E54: Each worksheet contains a column for error/warning checks and also displays the results of workbook level checks.
E55: Row-level checks are summarised in Columns A and B, for errors and warnings respectively, and summarised at the worksheet level in the header.
E56: The model's 'Contents' tab also provides a summary of all of the individual worksheet-level checks.
E57: etc.]
E59: 3.3 Saving and Logging
E61: This section should include information on saving the model and updating the Version Control Log. For example:
E62: [The model includes an in-built Version Control Log to track data and structural changes to the model over its life.
E63: Each time the model is updated, a new version should be saved and the Version Control Log updated accordingly.
E64: [See 'VersionControlLog' tab for further information on recording model changes and saving new model versions.
E65: etc.]
E67: 3.4 Protection
E69: This section should include information on model protection. For example:
E70: [By default, all cells containing calculations are protected ([with/without] a password) to reduce accidental corruption risk.
E71: To make authorised changes to the model's calculations or structure the individual worksheets will need to be unprotected.
E72: After making any changes (and applying the agreed QA and testing procedures) all worksheets should be re-protected.
E73: etc.]
E75: 3.5 Model Features
E77: This section should include information on model features not covered elsewhere. For example:
E78: Scenario Selection
E79: Model Automation
E80: Expandable Tables
E81: etc.]
E83: 3.6 Input Sheets
E85: This section should include information on model input sheets. For example:
E86: [Model inputs are organised across dedicated worksheets that are arranged according to [Data Provider / Area / Scenario].
E87: Each input (e.g. data object) has a reference number that links it to a corresponding Book of Assumptions / Data Log entry ( 'BoA / DL Ref').
E88: Note: Following approval, any changes to the inputs should be reflected within the Book of Assumptions / Data Log.
E89: An overview of each of the input worksheets within the model is provided as follows:
E90: iInputExample
E91: This worksheet includes all general inputs that apply to the whole model:
E92: Inflation Rates - This section lists the Wage Inflation rates and shows the user selected rate that is applicable across the model.
E93: Note: As wage inflation is applied annually it is expected that inflation will only be entered in the first month of any one year.
E94: Staffing - This section lists the number of Full Time Equivalents (FTEs) by Grade over time together with Annual Salaries by Grade.
E95: Note: Any changes to the current Annual Salaries should be approved by [Finance] and the BoA-DL updated accordingly.
E96: etc.]
E98: 3.7 Calculation Sheets
E100: This section should include information on model calculation sheets. For example:
E101: [Model calculations have not been designed to require user interaction although are visible to provide transparency over calculations.
E102: An overview of each of the calculation worksheets within the model is provided as follows:
E103: cCalcExample
E104: This worksheet includes all staff cost calculations that apply to the in-house option:
E105: Staffing - This section calculates staff costs by grade. It is organised with Call Ups at the top of the section followed by Calculations:
E106: Call Ups - These formulas pull the data that is required to perform the calculations on this sheet from the iInputExample sheet
E107: Calculations: Salary Costs by Grade are initially calculated excluding inflation and then following the application of Wage Inflation
E108: etc.]
E110: 3.8 Output Sheets
E112: This section should include information on model output sheets. For example:
E113: [An overview of each of the output sheets within the model is provided as follows:
E114: oSummaryExample
E115: This worksheet includes a summary cost table for the in-house option:
E116: Costs Summary - This section summaries monthly costs over time for the in-house option, including inflation:
E117: Staff Costs - These costs call up the total indexed staff costs calculated in the Staffing section on cCalcExample
E118: etc.]
E120: 3.9 Admin and Control Sheets
E122: This section should include information on model administration and control sheets. For example:
E123: [An overview of each of the administration and control worksheets within the model is provided as follows:
E124: SysConfig
E125: This worksheet is intended for use by the model developer and should not require interaction from model users.
E126: This worksheet includes general settings that apply to the whole model:
E127: General Details - This section includes information on the project, IMA score, stakeholders and protective marking.
E128: Setup - This section includes the model start date - changes to this date may require updates to model input data.
E129: etc.]
E131: 3.10 Sign Convention
E133: This section should include information on model sign convention. For Example:
E134: [Costs are entered as positive figures]
D136: 4 Model Style Guide
E138: The following section includes details of how Cell Styles are used within this workbook.
D140: Use of Styles
E141: It is important to use the correct styles on different cell types to increase the readability and usability of the Model, and to help reduce the risk of error.
E142: A number of predefined cell styles have been set up in this workbook that can be accessed from the “Cell Styles” menu in the "Home" ribbon (see image below).
E143: To apply a style to a cell, select the cell and click on the relevant style from the 'Cell Styles' menu.
E144: Styles can also be 'copied' from the cells below and their formats 'pasted' to the required destination.
E145: If worksheets are protected, the only cell styles that are not locked are input cell styles.
E146: New Cell Styles can be added or old ones deleted or renamed. However, is important NOT to delete or rename any of the styles currently included
E147: in this workbook.
D155: Cell Styles
E157: Inputs | H157: Cell Protection? | I157: Custom Formatting?
E158: Amount | F158: 1234567.89 | H158: Unlocked | I158: No
E159: Amount 2.d.p | F159: 1234567.89 | H159: Unlocked | I159: No
E160: Percentage | F160: 1 | H160: Unlocked | I160: No
E161: Percentage 2.d.p | F161: 1 | H161: Unlocked | I161: No
E162: Date | F162: 2020-01-01 | H162: Unlocked | I162: No
E163: General | F163: Text | H163: Unlocked | I163: No
E164: List | F164: List | H164: Unlocked | I164: No
E165: Databook Reference | F165: 1.1 | H165: Unlocked | I165: No
E167: Links
E168: Amount | F168: 1234567.89 | H168: Locked | I168: No
E169: Amount 2.d.p | F169: 1234567.89 | H169: Locked | I169: No
E170: Percentage | F170: 1 | H170: Locked | I170: No
E171: Percentage 2.d.p | F171: 1 | H171: Locked | I171: No
E172: Date | F172: 2020-01-01 | H172: Locked | I172: No
E173: General | F173: Text | H173: Locked | I173: No
E175: Calculations
E176: Amount | F176: 1234567.89 | H176: Locked | I176: No
E177: Amount 2.d.p | F177: 1234567.89 | H177: Locked | I177: No
E178: Percentage | F178: 1 | H178: Locked | I178: No
E179: Percentage 2.d.p | F179: 1 | H179: Locked | I179: No
E180: Date | F180: 2020-01-01 | H180: Locked | I180: No
E182: Outputs
E183: Amount | F183: 1234567.89 | H183: Locked | I183: No
E184: Amount 2.d.p | F184: 1234567.89 | H184: Locked | I184: No
E185: Percentage | F185: 1 | H185: Locked | I185: No
E186: Percentage 2.d.p | F186: 1 | H186: Locked | I186: No
E187: Date | F187: 2020-01-01 | H187: Locked | I187: No
E189: Other
E190: Label | F190: Label | H190: Locked | I190: No
E191: Unit | F191: Unit | H191: Locked | I191: No
E192: System | F192: System | H192: Locked | I192: No
E193: Error | F193: 1 | H193: Locked | I193: Yes
E194: Warning | F194: 2 | H194: Locked | I194: Yes
E195: Warning Text | F195: Warning Text | H195: Locked | I195: No
E196: Named Range* | H196: N/a | I196: N/a
E197: *Note, this is not an official Excel style and should be manually applied on top of any Named Ranges - see 'SysConfig' sheet for examples
E199: Headings
E200: Banner | H200: Locked | I200: No
E201: Heading 1 | F201: Heading 1 | H201: Locked | I201: No
E202: Heading 2 | F202: Heading 2 | H202: Locked | I202: No
E203: Heading 3 | F203: Heading 3 | H203: Locked | I203: No
E204: Heading 4 | F204: Heading 4 | H204: Locked | I204: No
D206: 5 Use of Columns
E208: This workbook uses consistent columns across different worksheets. For example, in this workbook, all Error & Warning checks are in columns A & B,
E209: all Labels are in Column F and all Units are in column G (see below for full list).
E210: The alignment of the timeline across worksheets that contain one is also important.
E211: This means that the same column should consistently refer to the same time period.
E212: For example, the first period of the timeline in this workbook is in column AA on each and every worksheet that is time-based.
E213: The Following key columns are consistent across the workbook:
E214: Column A - Error Check Summary
E215: Column B - Warning Summary
E216: Column D - Heading Label Column
E217: Column E - Sub Heading Label Column
E218: Column F - Sub Heading / Label Column
E219: Column I - Databook Reference Column
E220: Column G - Units Column
E221: Column L to Z Spare Columns to be used as required (e.g. adding comments against specific inputs in input sheet)
E222: Column M (Input sheets) - comments column to add free text comments if required
E223: Column AA onwards - timeline in timebound sheets
E225: If there is a requirement to insert new columns within this workbook this should be done consistently across all worksheets.
E226: Notably, columns should not be inserted before the first two columns as these contain the Error and Warning checks.
D228: 6 Columns | E228: Definitions
E230: £ 2021/22 | F230: GBP Values expressed in 2021/22 economic conditions/price base
E231: £ Nominal | F231: GBP Values including inflation
D233: END OF WORKSHEET - INSERT ROWS ABOVE

Sheet VersionControlLog
C1: THIS SHOULD COST MODEL BUILD TEMPLATE IS FOR GUIDANCE ONLY. PLEASE REMOVE GCF BRANDING AND UPDATE TO REFLECT THE BRANDING OF YOUR CONTRACTING AUTHORITY PRIOR TO POPULATING IT.
C2: =cstProjectName -> SCM Build Template
C3: =MID(CELL("filename",A1),FIND("]",CELL("filename",A1))+1,256)&" Sheet" -> VersionControlLog Sheet
C4: =IF(ISBLANK(cstProtectiveMarking),"",cstProtectiveMarking) -> OFFICIAL
C5: =HYPERLINK("#'Contents'!A1",sysChkWord) -> All Checks OK
C6: =HYPERLINK("#'Contents'!A1","Click for Contents") -> Click for Contents
A8: =SUM(A9:A77) -> 0 | B8: =SUM(B9:B77) -> 0
D10: Version Control Log
E12: Overview
F14: It is important to maintain an audit trail of changes made to an SCM over its life (e.g. to explain what changes were made, when, why, and who approved them).
F15: This becomes increasingly important as the model transitions from development to testing and thereafter when outputs begin to be socialised and the model enters the Use phase (see SCM Development Guidance for more information on Version Control).
E17: Instructions
E19: Updating the Version Control Log
F20: The Version Control Log can be used to keep a record of changes made to the model between different versions. The following fields, which are included in the Version Control Log, can be populated for each new record:
F21: - Description of Change
F22: - Key Impact of Change
F23: - Type of Change
F24: - Worksheet(s) changed
F25: - Change Justification
F26: - Current QA Status
F27: - Model SRO approval obtained? (YN)
F28: - Up to 5 KPIS (see below for further details)
F30: When updating the Version Control Log using the 'Update Version Control Log' button (see below) the following fields within the Version Control Log will be automatically populated:
F31: - Ref # (a unique reference number for the change)
F32: - Model Version File Name (the current name of the SCM)
F33: - Date & Time of Change (the current time and date)
F34: - User who made the change (the SCM user's system ID)
F36: To update the Version Control Log, each of the fields in the "New Change" section below should be completed. Noting:
F37: a) The Description of Change field must be completed. If it is not completed the Version Control Log will not update when using the 'Update Version Control Log' button.
F38: b) Whilst not enforced, completing each of the other fields is good practice. See below for more details on tracking KPIs.
F40: On completing the "New Change" section, it should be appended to the Version Control Log by clicking the "Update Version Control Log" button. This will copy the data from the "New Change" section to the "Version Control Log".
F41: At this point the user will be prompted to save a new version of the model - this is not a requirement but is advisable. It provides an audit trail of changes and enables roll-back to prior versions if required.
E43: KPIs
F44: Tracking the movement of certain key outputs, such as NPV, as changes are made to the model may be useful. These are referred to as KPIs in this Version Control Log.
F45: In order to use the KPI tracker, link the cells in the KPI cells in the "New Change" section to the required KPI in the model. This will then store the value of the KPI at the time the Version Control Log was updated and provide a record of the KPI value for each of the previous Model versions.
F46: For example to link "KPI 1" to the Output in cell BL18 of the 'oSummaryExample' sheet enter "=oSummaryExample!BL18" into the "KPI 1" box below (in cell R67).
F47: Note KPIs are stored within the Version Control Log as hard-wired values to provide a record of their value at the time the Version Control Log was updated. They should not be updated retrospectively or formula linked to the 'live' KPI value.
E49: Clearing the Log
F50: To clear the log, click the "Clear Version Control Log" button above.
F51: This step cannot be undone so this should only be performed if the user is certain they want to delete the contents of the Version Control Log.
E53: Use of VBA
F54: Note, if VBA is not enabled the Version Control Log will need to be updated manually by adding new rows into the 'Version Control Log' section below and updating it directly.
F56: In order to enable VBA:
F57: 1. Click the File tab.
F58: 2. Click Options.
F59: 3. Click Trust Centre, and then click Trust Centre Settings.
F60: 4. In the Trust Centre, click Macro Settings.
F61: 5. Check Trust access to the VBA project object model to enable access to Visual Basic Projects.
F62: 6. Click OK.
E64: New Change
G66: Ref # | H66: Model Version File Name | I66: Date & Time | J66: User | K66: Description of Change | L66: Key Impact of Change | M66: Type of Change | N66: Worksheet(s) changed | O66: Change Justification | P66: Current QA Status | Q66: Model SRO approval obtained? | R66: KPI 1 | S66: KPI 2 | T66: KPI 3 | U66: KPI 4 | V66: KPI 5
H67: =MID(CELL("filename",A1),FIND("[",CELL("filename",A1))+1,FIND("]",CELL("filename",A1))-FIND("[",CELL("filename",A1))-1) -> SCM_Build_Template_V1_May_2021 (2).xlsm | K67: Example Change | L67: New features | M67: Data | N67: Contents | O67: Development | P67: Pending | Q67: No
E69: Version Control Log
G71: Ref # | H71: Version Name | I71: Date & Time | J71: User | K71: Description of Change | L71: Key Impact of Change | M71: Type of Change | N71: Worksheet(s) changed | O71: Change Justification | P71: Current QA Status | Q71: Model SRO approval obtained? | R71: KPI 1 | S71: KPI 2 | T71: KPI 3 | U71: KPI 4 | V71: KPI 5
G72: 3 | H72: DRAFT - Model Template 087.xlsm | I72: 2020-07-13T11:19:57 | J72: DummyUser1 | K72: Example Change 3 | L72: New features | M72: Data | N72: Contents | O72: Development | P72: Pending | Q72: No
G73: 2 | H73: DRAFT - Model Template 077.xlsm | I73: 2020-06-30T17:11:38 | J73: DummyUser1 | K73: Example Change 2 | L73: New features | M73: Data | N73: Contents | O73: Development | P73: Pending | Q73: No
G74: 1 | H74: DRAFT - Model Template 075.xlsm | I74: 2020-06-29T19:03:11 | J74: DummyUser1 | K74: Example Change 1 | L74: New features | M74: Data | N74: Contents | O74: Development | P74: Pending | Q74: No
G75: INSERT NEW ROWS ABOVE THIS ROW
D77: END OF WORKSHEET - INSERT ROWS ABOVE

Sheet BoA-DL
C1: THIS SHOULD COST MODEL BUILD TEMPLATE IS FOR GUIDANCE ONLY. PLEASE REMOVE GCF BRANDING AND UPDATE TO REFLECT THE BRANDING OF YOUR CONTRACTING AUTHORITY PRIOR TO POPULATING IT.
C2: =cstProjectName -> SCM Build Template
C3: =MID(CELL("filename",A1),FIND("]",CELL("filename",A1))+1,256)&" Sheet" -> BoA-DL Sheet
C4: =IF(ISBLANK(cstProtectiveMarking),"",cstProtectiveMarking) -> OFFICIAL
C5: =HYPERLINK("#'Contents'!A1",sysChkWord) -> All Checks OK
C6: =HYPERLINK("#'Contents'!A1","Click for Contents") -> Click for Contents
A8: =SUM(A9:A144) -> 0 | B8: =SUM(B9:B144) -> 0
D10: BoA / DL User Instructions - This Section Should Be Deleted When The BoA / DL Is Complete / Substantially Complete
E12: Overview of this Sheet
F13: This sheet includes the following sections on the Book of Assumptions / Data Log (BoA / DL):
F14: - BoA / DL User Instructions, including Book of Assumptions / Data Log Overarching Principles, Instructions for Use and Development Principles
F15: - Overview - a narrative section explaining the Book of Assumptions / Data Log (to be tailored by the user when producing the BoA / DL)
F16: - A Template Book of Assumptions / Data Log (to be tailored by the user when producing the BoA / DL)
E18: Further Reading
F19: This Template BoA / DL should be used with reference to the following publications:
F20: - The Sourcing Playbook
F21: - The Construction Playbook
F22: - SCM Guidance Note
F23: - SCM Development Guidance
F24: - SCM Technical Build Guidance
F26: Additionally, the NAO guidance on 'Improving information to support decision making: standards for better quality data' can be found here.
F28: For complex sourcing projects, you should consult the Sourcing Programme before planning an SCM via sourcing.programme@cabinetoffice.gov.uk.
E30: Overarching Principles
F31: A Book of Assumptions / Data Log is a detailed list of the data and assumptions that a model uses and their salient characteristics. It is good practice to prepare a Book of Assumptions / Data Log as a model is developed and input data is brought into the model.
F32: The Book of Assumptions / Data Log may start off as a data plan, containing a list of all data objects a model will use and then evolve into a final Book of Assumptions / Data Log.
F33: Given that data can be obtained from different sources, at different levels of detail and with various limitations or constraints, the absence of a Book of Assumptions / Data Log may render it difficult or even impossible to establish data provenance.
F34: The Book of Assumptions / Data Log has several benefits to the end user, notably:
F35: - It provides a readily accessible overview of the data that the model uses as well as its provenance.
F36: - It allows for review and challenge of the model’s source data and input assumptions and, together with reference to the model Specification, how it is used within the model to derive outputs.
F37: - It helps to manage the risk that a model and its source data become disconnected and model results cannot be explained.
F38: - As well as enhancing the user community’s understanding of the model, the Book of Assumptions / Data Log helps drive auditability of the model and traceability into its dependent data.
F39: The time demands on model developers and reviewers when undertaking formal QA and testing will increase in the absence of a Book of Assumptions / Data Log. Such demands could substantially delay the model’s delivery and, in-turn, ability to meet its purpose.
E41: Instructions for Use
F42: The Book of Assumptions / Data Log below contains a number of data fields (e.g. Description, Filename/Path) that should be completed for each data reference.
F43: The example data fields in the Book of Assumptions / Data Log can be tailored as required (e.g. by adding new fields or removing/renaming existing fields).
F44: The data field headings (e.g. Ref No.) have an embedded description that will be revealed when the heading is clicked on. If required this can be edited via Excel’s Data Validation/Input Message menu.
F45: The 'Overview' section below should be updated and tailored as required to give as much detail on the Book of Assumptions / Data Log to the user community as required.
F46: When tailoring the 'Overview', consider using some of the content in the 'Overarching Principles' and 'Development Principles' sections as appropriate.
F47: This 'BoA / DL User Instructions' Section should be deleted once the Book of Assumptions / Data Log is completed/substantially complete.
F48: The entries in the Book of Assumptions / Data Log below are illustrative examples and they should be deleted prior to use.
E50: Development Principles
F51: As the model planning process progresses, prepare a list of all anticipated input data required by the model and review it for completeness.
F52: This will form the basis of the model Data Plan and will likely evolve over time (e.g. during the model design phase and beyond).
F53: This initial list should be documented in the 'Book of Assumptions / Data Log' section below.
F54: Consider data availability and quality and identify areas where obtaining data may be problematic or data quality may be low. Document this within the table below with the 'Issues' or 'Maturity' fields.
F55: Where data is not readily available, determine actions to source or generate the data.
F56: Consider any data processing requirements that may be required to transform the data for SCM population, and document this below (in either 'Issues' or 'Manipulation' fields).
F57: If data manipulation is complex, a separate file note on data manipulation steps may be required.
F58: Once data sets and the Data Plan are agreed, revise the initial Book of Assumptions / Data Log detailed below. Updating the Book of Assumptions / Data Log will likely be an iterative process.
F59: The Book of Assumptions / Data Log should be updated and maintained as the model develops and throughout its lifecycle. This includes updating the Book of Assumptions / Data Log when the model is being used.
E61: Granularity of Data
F62: The Book of Assumptions / Data Log should cover all data and assumptions used within the model. However, each entry in the Book of Assumptions / Data Log could cover more than one input and judgement is required.
F63: For example, both illustrative entries in the Book of Assumptions / Data Log below relate to 'Wage Inflation Rates'.
F64: The data was provided by the same Source/Provider, on the same Date and in the same File. It also shares the same properties in terms of Review Dates and Validity.
F65: As such, the two illustrative entries could be represented by a single entry in the Book of Assumptions / Data Log. However, in this instance, they have been split out - this is a subjective judgement call.
E67: Data Readiness Levels (DRL)
F68: The reliability of model outputs and, in turn, their fitness for purpose will be impacted by the reliability of data used to power the model.
F69: In practice, the reliability of data will vary across (potentially hundreds of) inputs and will often mature over time as new data is gathered.
F70: The ability to communicate this to decision makers can be challenging and it is not always done effectively.
F71: However, understanding the reliability of model outputs is essential to their ability to make informed decisions.
F73: By using a structured categorisation framework, the reliability of model inputs and, in-turn outputs, can be communicated in a meaningful and consistent manner.
F74: This framework is referred to as the Data Readiness Level or DRL.
F75: Data that is more mature or reliable is more ‘ready’ for use and has a higher DRL than data that is less mature or reliable.
F76: Data with a low DRL is not necessarily un-useful but it may need to be matured to a higher DRL over the model development lifecycle in order to be reliable enough to inform particular decisions.
F78: Through a weighting approach, the overall DRL of a model’s outputs can be calculated with reference to the DRL of its individual inputs.
F79: The advantages of this are twofold: Firstly it enables the reliability of model outputs to be communicated; and
F80: Secondly it enables efforts to mature data to be prioritised towards those inputs that have both the lowest DRL and the greatest impact on model outputs.
F82: The DRL scale in the example below runs from Level 1 (Genesis Thinking) to Level 9 (Historical Data).
F83: It is an illustrative framework and should be adapted to meet the requirements of your contracting authority.
F84: This includes supplementing it with clear and meaningful descriptions and/or examples to help ensure consistency of application.
F85: Notably, to enable meaningful comparisons and to provide a consistent measure that can be relied upon by decision makers, it is essential that a uniform framework is adopted across the contracting authority.
E87: Illustrative Example of a DRL Scale
D115: Overview
F117: This Book of Assumptions / Data Log contains a list of all the input data and assumptions held within the [Insert Name of Model] model.
F118: This Book of Assumptions / Data Log should be updated throughout the life of the model, and tie back to the data and assumptions within the model at all times.
F119: Each entry in the BoA / DL should have a reference number which corresponds to data objects in the model. This facilitates ease of reconciliation between the Book of Assumptions / Data Log and the model.
F120: A brief description of each field in the BoA / DL can be viewed by clicking on the heading field (e.g. Ref No.).
F121: The Book of Assumptions / Data Log table below can be updated to include more rows.
F122: To add new rows to the BoA / DL, select the number of rows to be added from the drop down list and click the 'Add New Rows to Table' button.
F123: This will add the required number of rows at the bottom of the table.
F124: If VBA (Macros) are not enabled then rows will need to be added to the BoA / DL table manually.
F125: [Insert additional rows as required to update this section]
D127: Book of Assumptions / Data Log
F129: 5 | G129: <<<No. Rows to Add
F131: Ref No. | G131: Area | H131: Input Label | I131: Description | J131: Rationale | K131: Assumptions | L131: Units | M131: Base Year | N131: Filename/Path | O131: Source/Provider | P131: Date Produced | Q131: Date Provided | R131: Owner | S131: Review Date | T131: Refresh | U131: Validity | V131: Issues | W131: Manipulation | X131: DRL/Maturity | Y131: Maturity Plan
F132: 1.1 | G132: Wage Inflation Rates | H132: Inflation Index 1 | I132: Example input for inflation - using profile 1 | J132: Departmental guidelines | K132: N/a | L132: % | M132: Salaries are input in GBP 2020 prices | N132: InflationInputs.xlsx | O132: Joe Bloggs | P132: 2020-06-30 | Q132: 2020-07-07 | R132: Pat Bloggs | S132: 2020-07-07 | T132: =EOMONTH(S132,3) -> 2020-10-31 | U132: No restrictions | V132: No known issues | W132: N/a | X132: 5 | Y132: N/a
F133: 1.2 | G133: Wage Inflation Rates | H133: Inflation Index 2 | I133: Example input for inflation - using profile 2 | J133: Departmental guidelines | K133: N/a | L133: % | M133: Salaries are input in GBP 2020 prices | N133: InflationInputs.xlsx | O133: Joe Bloggs | P133: 2020-06-30 | Q133: 2020-07-07 | R133: Pat Bloggs | S133: 2020-07-07 | T133: =EOMONTH(S133,3) -> 2020-10-31 | U133: No restrictions | V133: No known issues | W133: N/a | X133: 9 | Y133: N/a
F142: INSERT NEW ROWS ABOVE THIS ROW
D144: END OF WORKSHEET - INSERT ROWS ABOVE

Sheet Inputs>>

Sheet iInputExample
C1: THIS SHOULD COST MODEL BUILD TEMPLATE IS FOR GUIDANCE ONLY. PLEASE REMOVE GCF BRANDING AND UPDATE TO REFLECT THE BRANDING OF YOUR CONTRACTING AUTHORITY PRIOR TO POPULATING IT.
C2: =cstProjectName -> SCM Build Template | Z2: =SysTime!Z2 -> Period Start | AA2: =SysTime!AA2 -> 2021-04-01 | AB2: =SysTime!AB2 -> 2021-05-01 | AC2: =SysTime!AC2 -> 2021-06-01 | AD2: =SysTime!AD2 -> 2021-07-01 | AE2: =SysTime!AE2 -> 2021-08-01 | AF2: =SysTime!AF2 -> 2021-09-01 | AG2: =SysTime!AG2 -> 2021-10-01 | AH2: =SysTime!AH2 -> 2021-11-01 | AI2: =SysTime!AI2 -> 2021-12-01 | AJ2: =SysTime!AJ2 -> 2022-01-01 | AK2: =SysTime!AK2 -> 2022-02-01 | AL2: =SysTime!AL2 -> 2022-03-01 | AM2: =SysTime!AM2 -> 2022-04-01 | AN2: =SysTime!AN2 -> 2022-05-01 | AO2: =SysTime!AO2 -> 2022-06-01 | AP2: =SysTime!AP2 -> 2022-07-01 | AQ2: =SysTime!AQ2 -> 2022-08-01 | AR2: =SysTime!AR2 -> 2022-09-01 | AS2: =SysTime!AS2 -> 2022-10-01 | AT2: =SysTime!AT2 -> 2022-11-01 | AU2: =SysTime!AU2 -> 2022-12-01 | AV2: =SysTime!AV2 -> 2023-01-01 | AW2: =SysTime!AW2 -> 2023-02-01 | AX2: =SysTime!AX2 -> 2023-03-01 | AY2: =SysTime!AY2 -> 2023-04-01 | AZ2: =SysTime!AZ2 -> 2023-05-01 | BA2: =SysTime!BA2 -> 2023-06-01 | BB2: =SysTime!BB2 -> 2023-07-01 | BC2: =SysTime!BC2 -> 2023-08-01 | BD2: =SysTime!BD2 -> 2023-09-01 | BE2: =SysTime!BE2 -> 2023-10-01 | BF2: =SysTime!BF2 -> 2023-11-01 | BG2: =SysTime!BG2 -> 2023-12-01 | BH2: =SysTime!BH2 -> 2024-01-01 | BI2: =SysTime!BI2 -> 2024-02-01 | BJ2: =SysTime!BJ2 -> 2024-03-01 | BL2: =SysTime!BL2 -> 2021-04-01 | BM2: =SysTime!BM2 -> 2022-04-01 | BN2: =SysTime!BN2 -> 2023-04-01
C3: =MID(CELL("filename",A1),FIND("]",CELL("filename",A1))+1,256)&" Sheet" -> iInputExample Sheet | Z3: =SysTime!Z3 -> Period End | AA3: =SysTime!AA3 -> 2021-04-30 | AB3: =SysTime!AB3 -> 2021-05-31 | AC3: =SysTime!AC3 -> 2021-06-30 | AD3: =SysTime!AD3 -> 2021-07-31 | AE3: =SysTime!AE3 -> 2021-08-31 | AF3: =SysTime!AF3 -> 2021-09-30 | AG3: =SysTime!AG3 -> 2021-10-31 | AH3: =SysTime!AH3 -> 2021-11-30 | AI3: =SysTime!AI3 -> 2021-12-31 | AJ3: =SysTime!AJ3 -> 2022-01-31 | AK3: =SysTime!AK3 -> 2022-02-28 | AL3: =SysTime!AL3 -> 2022-03-31 | AM3: =SysTime!AM3 -> 2022-04-30 | AN3: =SysTime!AN3 -> 2022-05-31 | AO3: =SysTime!AO3 -> 2022-06-30 | AP3: =SysTime!AP3 -> 2022-07-31 | AQ3: =SysTime!AQ3 -> 2022-08-31 | AR3: =SysTime!AR3 -> 2022-09-30 | AS3: =SysTime!AS3 -> 2022-10-31 | AT3: =SysTime!AT3 -> 2022-11-30 | AU3: =SysTime!AU3 -> 2022-12-31 | AV3: =SysTime!AV3 -> 2023-01-31 | AW3: =SysTime!AW3 -> 2023-02-28 | AX3: =SysTime!AX3 -> 2023-03-31 | AY3: =SysTime!AY3 -> 2023-04-30 | AZ3: =SysTime!AZ3 -> 2023-05-31 | BA3: =SysTime!BA3 -> 2023-06-30 | BB3: =SysTime!BB3 -> 2023-07-31 | BC3: =SysTime!BC3 -> 2023-08-31 | BD3: =SysTime!BD3 -> 2023-09-30 | BE3: =SysTime!BE3 -> 2023-10-31 | BF3: =SysTime!BF3 -> 2023-11-30 | BG3: =SysTime!BG3 -> 2023-12-31 | BH3: =SysTime!BH3 -> 2024-01-31 | BI3: =SysTime!BI3 -> 2024-02-29 | BJ3: =SysTime!BJ3 -> 2024-03-31 | BL3: =SysTime!BL3 -> 2022-03-31 | BM3: =SysTime!BM3 -> 2023-03-31 | BN3: =SysTime!BN3 -> 2024-03-31
C4: =IF(ISBLANK(cstProtectiveMarking),"",cstProtectiveMarking) -> OFFICIAL | Z4: =SysTime!Z4 -> Timeline | AA4: =SysTime!AA4 -> Monthly | AB4: =SysTime!AB4 -> Monthly | AC4: =SysTime!AC4 -> Monthly | AD4: =SysTime!AD4 -> Monthly | AE4: =SysTime!AE4 -> Monthly | AF4: =SysTime!AF4 -> Monthly | AG4: =SysTime!AG4 -> Monthly | AH4: =SysTime!AH4 -> Monthly | AI4: =SysTime!AI4 -> Monthly | AJ4: =SysTime!AJ4 -> Monthly | AK4: =SysTime!AK4 -> Monthly | AL4: =SysTime!AL4 -> Monthly | AM4: =SysTime!AM4 -> Monthly | AN4: =SysTime!AN4 -> Monthly | AO4: =SysTime!AO4 -> Monthly | AP4: =SysTime!AP4 -> Monthly | AQ4: =SysTime!AQ4 -> Monthly | AR4: =SysTime!AR4 -> Monthly | AS4: =SysTime!AS4 -> Monthly | AT4: =SysTime!AT4 -> Monthly | AU4: =SysTime!AU4 -> Monthly | AV4: =SysTime!AV4 -> Monthly | AW4: =SysTime!AW4 -> Monthly | AX4: =SysTime!AX4 -> Monthly | AY4: =SysTime!AY4 -> Monthly | AZ4: =SysTime!AZ4 -> Monthly | BA4: =SysTime!BA4 -> Monthly | BB4: =SysTime!BB4 -> Monthly | BC4: =SysTime!BC4 -> Monthly | BD4: =SysTime!BD4 -> Monthly | BE4: =SysTime!BE4 -> Monthly | BF4: =SysTime!BF4 -> Monthly | BG4: =SysTime!BG4 -> Monthly | BH4: =SysTime!BH4 -> Monthly | BI4: =SysTime!BI4 -> Monthly | BJ4: =SysTime!BJ4 -> Monthly | BL4: =SysTime!BL4 -> Annual | BM4: =SysTime!BM4 -> Annual | BN4: =SysTime!BN4 -> Annual
C5: =HYPERLINK("#'Contents'!A1",sysChkWord) -> All Checks OK | Z5: =SysTime!Z5 -> Period index | AA5: =SysTime!AA5 -> 1 | AB5: =SysTime!AB5 -> 2 | AC5: =SysTime!AC5 -> 3 | AD5: =SysTime!AD5 -> 4 | AE5: =SysTime!AE5 -> 5 | AF5: =SysTime!AF5 -> 6 | AG5: =SysTime!AG5 -> 7 | AH5: =SysTime!AH5 -> 8 | AI5: =SysTime!AI5 -> 9 | AJ5: =SysTime!AJ5 -> 10 | AK5: =SysTime!AK5 -> 11 | AL5: =SysTime!AL5 -> 12 | AM5: =SysTime!AM5 -> 13 | AN5: =SysTime!AN5 -> 14 | AO5: =SysTime!AO5 -> 15 | AP5: =SysTime!AP5 -> 16 | AQ5: =SysTime!AQ5 -> 17 | AR5: =SysTime!AR5 -> 18 | AS5: =SysTime!AS5 -> 19 | AT5: =SysTime!AT5 -> 20 | AU5: =SysTime!AU5 -> 21 | AV5: =SysTime!AV5 -> 22 | AW5: =SysTime!AW5 -> 23 | AX5: =SysTime!AX5 -> 24 | AY5: =SysTime!AY5 -> 25 | AZ5: =SysTime!AZ5 -> 26 | BA5: =SysTime!BA5 -> 27 | BB5: =SysTime!BB5 -> 28 | BC5: =SysTime!BC5 -> 29 | BD5: =SysTime!BD5 -> 30 | BE5: =SysTime!BE5 -> 31 | BF5: =SysTime!BF5 -> 32 | BG5: =SysTime!BG5 -> 33 | BH5: =SysTime!BH5 -> 34 | BI5: =SysTime!BI5 -> 35 | BJ5: =SysTime!BJ5 -> 36 | BL5: =SysTime!BL5 -> 1 | BM5: =SysTime!BM5 -> 2 | BN5: =SysTime!BN5 -> 3
C6: =HYPERLINK("#'Contents'!A1","Click for Contents") -> Click for Contents | Z6: =SysTime!Z6 -> Year index | AA6: =SysTime!AA6 -> 1 | AB6: =SysTime!AB6 -> 1 | AC6: =SysTime!AC6 -> 1 | AD6: =SysTime!AD6 -> 1 | AE6: =SysTime!AE6 -> 1 | AF6: =SysTime!AF6 -> 1 | AG6: =SysTime!AG6 -> 1 | AH6: =SysTime!AH6 -> 1 | AI6: =SysTime!AI6 -> 1 | AJ6: =SysTime!AJ6 -> 1 | AK6: =SysTime!AK6 -> 1 | AL6: =SysTime!AL6 -> 1 | AM6: =SysTime!AM6 -> 2 | AN6: =SysTime!AN6 -> 2 | AO6: =SysTime!AO6 -> 2 | AP6: =SysTime!AP6 -> 2 | AQ6: =SysTime!AQ6 -> 2 | AR6: =SysTime!AR6 -> 2 | AS6: =SysTime!AS6 -> 2 | AT6: =SysTime!AT6 -> 2 | AU6: =SysTime!AU6 -> 2 | AV6: =SysTime!AV6 -> 2 | AW6: =SysTime!AW6 -> 2 | AX6: =SysTime!AX6 -> 2 | AY6: =SysTime!AY6 -> 3 | AZ6: =SysTime!AZ6 -> 3 | BA6: =SysTime!BA6 -> 3 | BB6: =SysTime!BB6 -> 3 | BC6: =SysTime!BC6 -> 3 | BD6: =SysTime!BD6 -> 3 | BE6: =SysTime!BE6 -> 3 | BF6: =SysTime!BF6 -> 3 | BG6: =SysTime!BG6 -> 3 | BH6: =SysTime!BH6 -> 3 | BI6: =SysTime!BI6 -> 3 | BJ6: =SysTime!BJ6 -> 3 | BL6: =SysTime!BL6 -> 1 | BM6: =SysTime!BM6 -> 2 | BN6: =SysTime!BN6 -> 3
Z7: =SysTime!Z7 -> Relative period | AA7: =SysTime!AA7 -> 1 | AB7: =SysTime!AB7 -> 2 | AC7: =SysTime!AC7 -> 3 | AD7: =SysTime!AD7 -> 4 | AE7: =SysTime!AE7 -> 5 | AF7: =SysTime!AF7 -> 6 | AG7: =SysTime!AG7 -> 7 | AH7: =SysTime!AH7 -> 8 | AI7: =SysTime!AI7 -> 9 | AJ7: =SysTime!AJ7 -> 10 | AK7: =SysTime!AK7 -> 11 | AL7: =SysTime!AL7 -> 12 | AM7: =SysTime!AM7 -> 1 | AN7: =SysTime!AN7 -> 2 | AO7: =SysTime!AO7 -> 3 | AP7: =SysTime!AP7 -> 4 | AQ7: =SysTime!AQ7 -> 5 | AR7: =SysTime!AR7 -> 6 | AS7: =SysTime!AS7 -> 7 | AT7: =SysTime!AT7 -> 8 | AU7: =SysTime!AU7 -> 9 | AV7: =SysTime!AV7 -> 10 | AW7: =SysTime!AW7 -> 11 | AX7: =SysTime!AX7 -> 12 | AY7: =SysTime!AY7 -> 1 | AZ7: =SysTime!AZ7 -> 2 | BA7: =SysTime!BA7 -> 3 | BB7: =SysTime!BB7 -> 4 | BC7: =SysTime!BC7 -> 5 | BD7: =SysTime!BD7 -> 6 | BE7: =SysTime!BE7 -> 7 | BF7: =SysTime!BF7 -> 8 | BG7: =SysTime!BG7 -> 9 | BH7: =SysTime!BH7 -> 10 | BI7: =SysTime!BI7 -> 11 | BJ7: =SysTime!BJ7 -> 12 | BL7: =SysTime!BL7 -> 1 | BM7: =SysTime!BM7 -> 2 | BN7: =SysTime!BN7 -> 3
A8: =SUM(A9:A39) -> 0 | B8: =SUM(B9:B39) -> 0 | G8: Units | I8: BoA / DL Ref | K8: Non-time dep | M8: Comments
D10: 1 Inflation Rates
E12: Wage Inflation Rates
F14: Inflation Index 1 | G14: % | I14: 1.1 | AA14: 0 | AB14: 0 | AC14: 0 | AD14: 0 | AE14: 0 | AF14: 0 | AG14: 0 | AH14: 0 | AI14: 0 | AJ14: 0 | AK14: 0 | AL14: 0 | AM14: 0.01 | AN14: 0 | AO14: 0 | AP14: 0 | AQ14: 0 | AR14: 0 | AS14: 0 | AT14: 0 | AU14: 0 | AV14: 0 | AW14: 0 | AX14: 0 | AY14: 0.01 | AZ14: 0 | BA14: 0 | BB14: 0 | BC14: 0 | BD14: 0 | BE14: 0 | BF14: 0 | BG14: 0 | BH14: 0 | BI14: 0 | BJ14: 0
F15: Inflation Index 2 | G15: % | I15: 1.2 | AA15: 0 | AB15: 0 | AC15: 0 | AD15: 0 | AE15: 0 | AF15: 0 | AG15: 0 | AH15: 0 | AI15: 0 | AJ15: 0 | AK15: 0 | AL15: 0 | AM15: 0.02 | AN15: 0 | AO15: 0 | AP15: 0 | AQ15: 0 | AR15: 0 | AS15: 0 | AT15: 0 | AU15: 0 | AV15: 0 | AW15: 0 | AX15: 0 | AY15: 0.02 | AZ15: 0 | BA15: 0 | BB15: 0 | BC15: 0 | BD15: 0 | BE15: 0 | BF15: 0 | BG15: 0 | BH15: 0 | BI15: 0 | BJ15: 0
F17: Inflation Rate - In Use | G17: Switch | K17: Inflation Index 1
D19: 2 Staffing
E21: 2.1 Details
E23: FTEs by Grade
A25: =COUNTBLANK(AA25:BJ25) -> 0 | F25: Grade A | G25: # | I25: 1.3 | AA25: 5 | AB25: 5 | AC25: 5 | AD25: 5 | AE25: 5 | AF25: 5 | AG25: 5 | AH25: 5 | AI25: 5 | AJ25: 5 | AK25: 5 | AL25: 5 | AM25: 5 | AN25: 5 | AO25: 5 | AP25: 5 | AQ25: 5 | AR25: 5 | AS25: 5 | AT25: 5 | AU25: 5 | AV25: 5 | AW25: 5 | AX25: 5 | AY25: 5 | AZ25: 5 | BA25: 5 | BB25: 5 | BC25: 5 | BD25: 5 | BE25: 5 | BF25: 5 | BG25: 5 | BH25: 5 | BI25: 5 | BJ25: 5
A26: =COUNTBLANK(AA26:BJ26) -> 0 | F26: Grade B | G26: # | I26: 1.4 | AA26: 3 | AB26: 3 | AC26: 3 | AD26: 3 | AE26: 3 | AF26: 3 | AG26: 3 | AH26: 3 | AI26: 3 | AJ26: 3 | AK26: 3 | AL26: 3 | AM26: 3 | AN26: 3 | AO26: 3 | AP26: 3 | AQ26: 3 | AR26: 3 | AS26: 3 | AT26: 3 | AU26: 3 | AV26: 3 | AW26: 3 | AX26: 3 | AY26: 3 | AZ26: 3 | BA26: 3 | BB26: 3 | BC26: 3 | BD26: 3 | BE26: 3 | BF26: 3 | BG26: 3 | BH26: 3 | BI26: 3 | BJ26: 3
A27: =COUNTBLANK(AA27:BJ27) -> 0 | F27: Grade C | G27: # | I27: 1.5 | AA27: 2 | AB27: 2 | AC27: 2 | AD27: 2 | AE27: 2 | AF27: 2 | AG27: 2 | AH27: 2 | AI27: 2 | AJ27: 2 | AK27: 2 | AL27: 2 | AM27: 2 | AN27: 2 | AO27: 2 | AP27: 2 | AQ27: 2 | AR27: 2 | AS27: 2 | AT27: 2 | AU27: 2 | AV27: 2 | AW27: 2 | AX27: 2 | AY27: 2 | AZ27: 2 | BA27: 2 | BB27: 2 | BC27: 2 | BD27: 2 | BE27: 2 | BF27: 2 | BG27: 2 | BH27: 2 | BI27: 2 | BJ27: 2
A28: 0 | F28: Grade D | G28: # | I28: 1.6 | AA28: 1 | AB28: 1 | AC28: 1 | AD28: 1 | AE28: 1 | AF28: 1 | AG28: 1 | AH28: 1 | AI28: 1 | AJ28: 1 | AK28: 1 | AL28: 1 | AM28: 1 | AN28: 1 | AO28: 1 | AP28: 1 | AQ28: 1 | AR28: 1 | AS28: 1 | AT28: 1 | AU28: 1 | AV28: 1 | AW28: 1 | AX28: 1 | AY28: 1 | AZ28: 1 | BA28: 1 | BB28: 1 | BC28: 1 | BD28: 1 | BE28: 1 | BF28: 1 | BG28: 1 | BH28: 1 | BI28: 1 | BJ28: 1
A29: 0 | F29: Grade E | G29: # | I29: 1.7 | AA29: 1 | AB29: 1 | AC29: 1 | AD29: 1 | AE29: 1 | AF29: 1 | AG29: 1 | AH29: 1 | AI29: 1 | AJ29: 1 | AK29: 1 | AL29: 1 | AM29: 1 | AN29: 1 | AO29: 1 | AP29: 1 | AQ29: 1 | AR29: 1 | AS29: 1 | AT29: 1 | AU29: 1 | AV29: 1 | AW29: 1 | AX29: 1 | AY29: 1 | AZ29: 1 | BA29: 1 | BB29: 1 | BC29: 1 | BD29: 1 | BE29: 1 | BF29: 1 | BG29: 1 | BH29: 1 | BI29: 1 | BJ29: 1
E31: Annual Salaries by Grade (2020 values)
A33: =IF(ISBLANK(K33),1,0) -> 0 | F33: Grade A | G33: £ 2021/22 | I33: 1.8 | K33: 30000
A34: =IF(ISBLANK(K34),1,0) -> 0 | F34: Grade B | G34: £ 2021/22 | I34: 1.9 | K34: 32500
A35: 0 | F35: Grade C | G35: £ 2021/22 | I35: 2.0 | K35: 35000
A36: 0 | F36: Grade D | G36: £ 2021/22 | I36: 2.1 | K36: 37500
A37: 0 | F37: Grade E | G37: £ 2021/22 | I37: 2.2 | K37: 50000
D39: END OF WORKSHEET - INSERT ROWS ABOVE

Sheet Calcs>>

Sheet cCalcExample
C1: THIS SHOULD COST MODEL BUILD TEMPLATE IS FOR GUIDANCE ONLY. PLEASE REMOVE GCF BRANDING AND UPDATE TO REFLECT THE BRANDING OF YOUR CONTRACTING AUTHORITY PRIOR TO POPULATING IT.
C2: =cstProjectName -> SCM Build Template | Z2: =SysTime!Z2 -> Period Start | AA2: =SysTime!AA2 -> 2021-04-01 | AB2: =SysTime!AB2 -> 2021-05-01 | AC2: =SysTime!AC2 -> 2021-06-01 | AD2: =SysTime!AD2 -> 2021-07-01 | AE2: =SysTime!AE2 -> 2021-08-01 | AF2: =SysTime!AF2 -> 2021-09-01 | AG2: =SysTime!AG2 -> 2021-10-01 | AH2: =SysTime!AH2 -> 2021-11-01 | AI2: =SysTime!AI2 -> 2021-12-01 | AJ2: =SysTime!AJ2 -> 2022-01-01 | AK2: =SysTime!AK2 -> 2022-02-01 | AL2: =SysTime!AL2 -> 2022-03-01 | AM2: =SysTime!AM2 -> 2022-04-01 | AN2: =SysTime!AN2 -> 2022-05-01 | AO2: =SysTime!AO2 -> 2022-06-01 | AP2: =SysTime!AP2 -> 2022-07-01 | AQ2: =SysTime!AQ2 -> 2022-08-01 | AR2: =SysTime!AR2 -> 2022-09-01 | AS2: =SysTime!AS2 -> 2022-10-01 | AT2: =SysTime!AT2 -> 2022-11-01 | AU2: =SysTime!AU2 -> 2022-12-01 | AV2: =SysTime!AV2 -> 2023-01-01 | AW2: =SysTime!AW2 -> 2023-02-01 | AX2: =SysTime!AX2 -> 2023-03-01 | AY2: =SysTime!AY2 -> 2023-04-01 | AZ2: =SysTime!AZ2 -> 2023-05-01 | BA2: =SysTime!BA2 -> 2023-06-01 | BB2: =SysTime!BB2 -> 2023-07-01 | BC2: =SysTime!BC2 -> 2023-08-01 | BD2: =SysTime!BD2 -> 2023-09-01 | BE2: =SysTime!BE2 -> 2023-10-01 | BF2: =SysTime!BF2 -> 2023-11-01 | BG2: =SysTime!BG2 -> 2023-12-01 | BH2: =SysTime!BH2 -> 2024-01-01 | BI2: =SysTime!BI2 -> 2024-02-01 | BJ2: =SysTime!BJ2 -> 2024-03-01 | BL2: =SysTime!BL2 -> 2021-04-01 | BM2: =SysTime!BM2 -> 2022-04-01 | BN2: =SysTime!BN2 -> 2023-04-01
C3: =MID(CELL("filename",A1),FIND("]",CELL("filename",A1))+1,256)&" Sheet" -> cCalcExample Sheet | Z3: =SysTime!Z3 -> Period End | AA3: =SysTime!AA3 -> 2021-04-30 | AB3: =SysTime!AB3 -> 2021-05-31 | AC3: =SysTime!AC3 -> 2021-06-30 | AD3: =SysTime!AD3 -> 2021-07-31 | AE3: =SysTime!AE3 -> 2021-08-31 | AF3: =SysTime!AF3 -> 2021-09-30 | AG3: =SysTime!AG3 -> 2021-10-31 | AH3: =SysTime!AH3 -> 2021-11-30 | AI3: =SysTime!AI3 -> 2021-12-31 | AJ3: =SysTime!AJ3 -> 2022-01-31 | AK3: =SysTime!AK3 -> 2022-02-28 | AL3: =SysTime!AL3 -> 2022-03-31 | AM3: =SysTime!AM3 -> 2022-04-30 | AN3: =SysTime!AN3 -> 2022-05-31 | AO3: =SysTime!AO3 -> 2022-06-30 | AP3: =SysTime!AP3 -> 2022-07-31 | AQ3: =SysTime!AQ3 -> 2022-08-31 | AR3: =SysTime!AR3 -> 2022-09-30 | AS3: =SysTime!AS3 -> 2022-10-31 | AT3: =SysTime!AT3 -> 2022-11-30 | AU3: =SysTime!AU3 -> 2022-12-31 | AV3: =SysTime!AV3 -> 2023-01-31 | AW3: =SysTime!AW3 -> 2023-02-28 | AX3: =SysTime!AX3 -> 2023-03-31 | AY3: =SysTime!AY3 -> 2023-04-30 | AZ3: =SysTime!AZ3 -> 2023-05-31 | BA3: =SysTime!BA3 -> 2023-06-30 | BB3: =SysTime!BB3 -> 2023-07-31 | BC3: =SysTime!BC3 -> 2023-08-31 | BD3: =SysTime!BD3 -> 2023-09-30 | BE3: =SysTime!BE3 -> 2023-10-31 | BF3: =SysTime!BF3 -> 2023-11-30 | BG3: =SysTime!BG3 -> 2023-12-31 | BH3: =SysTime!BH3 -> 2024-01-31 | BI3: =SysTime!BI3 -> 2024-02-29 | BJ3: =SysTime!BJ3 -> 2024-03-31 | BL3: =SysTime!BL3 -> 2022-03-31 | BM3: =SysTime!BM3 -> 2023-03-31 | BN3: =SysTime!BN3 -> 2024-03-31
C4: =IF(ISBLANK(cstProtectiveMarking),"",cstProtectiveMarking) -> OFFICIAL | Z4: =SysTime!Z4 -> Timeline | AA4: =SysTime!AA4 -> Monthly | AB4: =SysTime!AB4 -> Monthly | AC4: =SysTime!AC4 -> Monthly | AD4: =SysTime!AD4 -> Monthly | AE4: =SysTime!AE4 -> Monthly | AF4: =SysTime!AF4 -> Monthly | AG4: =SysTime!AG4 -> Monthly | AH4: =SysTime!AH4 -> Monthly | AI4: =SysTime!AI4 -> Monthly | AJ4: =SysTime!AJ4 -> Monthly | AK4: =SysTime!AK4 -> Monthly | AL4: =SysTime!AL4 -> Monthly | AM4: =SysTime!AM4 -> Monthly | AN4: =SysTime!AN4 -> Monthly | AO4: =SysTime!AO4 -> Monthly | AP4: =SysTime!AP4 -> Monthly | AQ4: =SysTime!AQ4 -> Monthly | AR4: =SysTime!AR4 -> Monthly | AS4: =SysTime!AS4 -> Monthly | AT4: =SysTime!AT4 -> Monthly | AU4: =SysTime!AU4 -> Monthly | AV4: =SysTime!AV4 -> Monthly | AW4: =SysTime!AW4 -> Monthly | AX4: =SysTime!AX4 -> Monthly | AY4: =SysTime!AY4 -> Monthly | AZ4: =SysTime!AZ4 -> Monthly | BA4: =SysTime!BA4 -> Monthly | BB4: =SysTime!BB4 -> Monthly | BC4: =SysTime!BC4 -> Monthly | BD4: =SysTime!BD4 -> Monthly | BE4: =SysTime!BE4 -> Monthly | BF4: =SysTime!BF4 -> Monthly | BG4: =SysTime!BG4 -> Monthly | BH4: =SysTime!BH4 -> Monthly | BI4: =SysTime!BI4 -> Monthly | BJ4: =SysTime!BJ4 -> Monthly | BL4: =SysTime!BL4 -> Annual | BM4: =SysTime!BM4 -> Annual | BN4: =SysTime!BN4 -> Annual
C5: =HYPERLINK("#'Contents'!A1",sysChkWord) -> All Checks OK | Z5: =SysTime!Z5 -> Period index | AA5: =SysTime!AA5 -> 1 | AB5: =SysTime!AB5 -> 2 | AC5: =SysTime!AC5 -> 3 | AD5: =SysTime!AD5 -> 4 | AE5: =SysTime!AE5 -> 5 | AF5: =SysTime!AF5 -> 6 | AG5: =SysTime!AG5 -> 7 | AH5: =SysTime!AH5 -> 8 | AI5: =SysTime!AI5 -> 9 | AJ5: =SysTime!AJ5 -> 10 | AK5: =SysTime!AK5 -> 11 | AL5: =SysTime!AL5 -> 12 | AM5: =SysTime!AM5 -> 13 | AN5: =SysTime!AN5 -> 14 | AO5: =SysTime!AO5 -> 15 | AP5: =SysTime!AP5 -> 16 | AQ5: =SysTime!AQ5 -> 17 | AR5: =SysTime!AR5 -> 18 | AS5: =SysTime!AS5 -> 19 | AT5: =SysTime!AT5 -> 20 | AU5: =SysTime!AU5 -> 21 | AV5: =SysTime!AV5 -> 22 | AW5: =SysTime!AW5 -> 23 | AX5: =SysTime!AX5 -> 24 | AY5: =SysTime!AY5 -> 25 | AZ5: =SysTime!AZ5 -> 26 | BA5: =SysTime!BA5 -> 27 | BB5: =SysTime!BB5 -> 28 | BC5: =SysTime!BC5 -> 29 | BD5: =SysTime!BD5 -> 30 | BE5: =SysTime!BE5 -> 31 | BF5: =SysTime!BF5 -> 32 | BG5: =SysTime!BG5 -> 33 | BH5: =SysTime!BH5 -> 34 | BI5: =SysTime!BI5 -> 35 | BJ5: =SysTime!BJ5 -> 36 | BL5: =SysTime!BL5 -> 1 | BM5: =SysTime!BM5 -> 2 | BN5: =SysTime!BN5 -> 3
C6: =HYPERLINK("#'Contents'!A1","Click for Contents") -> Click for Contents | Z6: =SysTime!Z6 -> Year index | AA6: =SysTime!AA6 -> 1 | AB6: =SysTime!AB6 -> 1 | AC6: =SysTime!AC6 -> 1 | AD6: =SysTime!AD6 -> 1 | AE6: =SysTime!AE6 -> 1 | AF6: =SysTime!AF6 -> 1 | AG6: =SysTime!AG6 -> 1 | AH6: =SysTime!AH6 -> 1 | AI6: =SysTime!AI6 -> 1 | AJ6: =SysTime!AJ6 -> 1 | AK6: =SysTime!AK6 -> 1 | AL6: =SysTime!AL6 -> 1 | AM6: =SysTime!AM6 -> 2 | AN6: =SysTime!AN6 -> 2 | AO6: =SysTime!AO6 -> 2 | AP6: =SysTime!AP6 -> 2 | AQ6: =SysTime!AQ6 -> 2 | AR6: =SysTime!AR6 -> 2 | AS6: =SysTime!AS6 -> 2 | AT6: =SysTime!AT6 -> 2 | AU6: =SysTime!AU6 -> 2 | AV6: =SysTime!AV6 -> 2 | AW6: =SysTime!AW6 -> 2 | AX6: =SysTime!AX6 -> 2 | AY6: =SysTime!AY6 -> 3 | AZ6: =SysTime!AZ6 -> 3 | BA6: =SysTime!BA6 -> 3 | BB6: =SysTime!BB6 -> 3 | BC6: =SysTime!BC6 -> 3 | BD6: =SysTime!BD6 -> 3 | BE6: =SysTime!BE6 -> 3 | BF6: =SysTime!BF6 -> 3 | BG6: =SysTime!BG6 -> 3 | BH6: =SysTime!BH6 -> 3 | BI6: =SysTime!BI6 -> 3 | BJ6: =SysTime!BJ6 -> 3 | BL6: =SysTime!BL6 -> 1 | BM6: =SysTime!BM6 -> 2 | BN6: =SysTime!BN6 -> 3
Z7: =SysTime!Z7 -> Relative period | AA7: =SysTime!AA7 -> 1 | AB7: =SysTime!AB7 -> 2 | AC7: =SysTime!AC7 -> 3 | AD7: =SysTime!AD7 -> 4 | AE7: =SysTime!AE7 -> 5 | AF7: =SysTime!AF7 -> 6 | AG7: =SysTime!AG7 -> 7 | AH7: =SysTime!AH7 -> 8 | AI7: =SysTime!AI7 -> 9 | AJ7: =SysTime!AJ7 -> 10 | AK7: =SysTime!AK7 -> 11 | AL7: =SysTime!AL7 -> 12 | AM7: =SysTime!AM7 -> 1 | AN7: =SysTime!AN7 -> 2 | AO7: =SysTime!AO7 -> 3 | AP7: =SysTime!AP7 -> 4 | AQ7: =SysTime!AQ7 -> 5 | AR7: =SysTime!AR7 -> 6 | AS7: =SysTime!AS7 -> 7 | AT7: =SysTime!AT7 -> 8 | AU7: =SysTime!AU7 -> 9 | AV7: =SysTime!AV7 -> 10 | AW7: =SysTime!AW7 -> 11 | AX7: =SysTime!AX7 -> 12 | AY7: =SysTime!AY7 -> 1 | AZ7: =SysTime!AZ7 -> 2 | BA7: =SysTime!BA7 -> 3 | BB7: =SysTime!BB7 -> 4 | BC7: =SysTime!BC7 -> 5 | BD7: =SysTime!BD7 -> 6 | BE7: =SysTime!BE7 -> 7 | BF7: =SysTime!BF7 -> 8 | BG7: =SysTime!BG7 -> 9 | BH7: =SysTime!BH7 -> 10 | BI7: =SysTime!BI7 -> 11 | BJ7: =SysTime!BJ7 -> 12 | BL7: =SysTime!BL7 -> 1 | BM7: =SysTime!BM7 -> 2 | BN7: =SysTime!BN7 -> 3
A8: =SUM(A9:A66) -> 0 | B8: =SUM(B9:B66) -> 0 | G8: Units | K8: Non-time dep
G9: CALCULATIONS ARE FOR ILLUSTRATIVE PURPOSES ONLY - NOT TO BE USED IN DEVELOPMENT OF AN SCM
D10: 1. Staffing
E12: 1.1 Staff Salaries
F14: Call Ups
F16: =iInputExample!F14 -> Inflation Index 1 | G16: % | AA16: =iInputExample!AA14 -> 0 | AB16: =iInputExample!AB14 -> 0 | AC16: =iInputExample!AC14 -> 0 | AD16: =iInputExample!AD14 -> 0 | AE16: =iInputExample!AE14 -> 0 | AF16: =iInputExample!AF14 -> 0 | AG16: =iInputExample!AG14 -> 0 | AH16: =iInputExample!AH14 -> 0 | AI16: =iInputExample!AI14 -> 0 | AJ16: =iInputExample!AJ14 -> 0 | AK16: =iInputExample!AK14 -> 0 | AL16: =iInputExample!AL14 -> 0 | AM16: =iInputExample!AM14 -> 0.01 | AN16: =iInputExample!AN14 -> 0 | AO16: =iInputExample!AO14 -> 0 | AP16: =iInputExample!AP14 -> 0 | AQ16: =iInputExample!AQ14 -> 0 | AR16: =iInputExample!AR14 -> 0 | AS16: =iInputExample!AS14 -> 0 | AT16: =iInputExample!AT14 -> 0 | AU16: =iInputExample!AU14 -> 0 | AV16: =iInputExample!AV14 -> 0 | AW16: =iInputExample!AW14 -> 0 | AX16: =iInputExample!AX14 -> 0 | AY16: =iInputExample!AY14 -> 0.01 | AZ16: =iInputExample!AZ14 -> 0 | BA16: =iInputExample!BA14 -> 0 | BB16: =iInputExample!BB14 -> 0 | BC16: =iInputExample!BC14 -> 0 | BD16: =iInputExample!BD14 -> 0 | BE16: =iInputExample!BE14 -> 0 | BF16: =iInputExample!BF14 -> 0 | BG16: =iInputExample!BG14 -> 0 | BH16: =iInputExample!BH14 -> 0 | BI16: =iInputExample!BI14 -> 0 | BJ16: =iInputExample!BJ14 -> 0
F17: =iInputExample!F15 -> Inflation Index 2 | G17: % | AA17: =iInputExample!AA15 -> 0 | AB17: =iInputExample!AB15 -> 0 | AC17: =iInputExample!AC15 -> 0 | AD17: =iInputExample!AD15 -> 0 | AE17: =iInputExample!AE15 -> 0 | AF17: =iInputExample!AF15 -> 0 | AG17: =iInputExample!AG15 -> 0 | AH17: =iInputExample!AH15 -> 0 | AI17: =iInputExample!AI15 -> 0 | AJ17: =iInputExample!AJ15 -> 0 | AK17: =iInputExample!AK15 -> 0 | AL17: =iInputExample!AL15 -> 0 | AM17: =iInputExample!AM15 -> 0.02 | AN17: =iInputExample!AN15 -> 0 | AO17: =iInputExample!AO15 -> 0 | AP17: =iInputExample!AP15 -> 0 | AQ17: =iInputExample!AQ15 -> 0 | AR17: =iInputExample!AR15 -> 0 | AS17: =iInputExample!AS15 -> 0 | AT17: =iInputExample!AT15 -> 0 | AU17: =iInputExample!AU15 -> 0 | AV17: =iInputExample!AV15 -> 0 | AW17: =iInputExample!AW15 -> 0 | AX17: =iInputExample!AX15 -> 0 | AY17: =iInputExample!AY15 -> 0.02 | AZ17: =iInputExample!AZ15 -> 0 | BA17: =iInputExample!BA15 -> 0 | BB17: =iInputExample!BB15 -> 0 | BC17: =iInputExample!BC15 -> 0 | BD17: =iInputExample!BD15 -> 0 | BE17: =iInputExample!BE15 -> 0 | BF17: =iInputExample!BF15 -> 0 | BG17: =iInputExample!BG15 -> 0 | BH17: =iInputExample!BH15 -> 0 | BI17: =iInputExample!BI15 -> 0 | BJ17: =iInputExample!BJ15 -> 0
F19: Inflation Rate - In Use | G19: Switch | K19: =iInputExample!K17 -> Inflation Index 1
F21: FTEs
F22: Grade A | G22: # | AA22: =iInputExample!AA25 -> 5 | AB22: =iInputExample!AB25 -> 5 | AC22: =iInputExample!AC25 -> 5 | AD22: =iInputExample!AD25 -> 5 | AE22: =iInputExample!AE25 -> 5 | AF22: =iInputExample!AF25 -> 5 | AG22: =iInputExample!AG25 -> 5 | AH22: =iInputExample!AH25 -> 5 | AI22: =iInputExample!AI25 -> 5 | AJ22: =iInputExample!AJ25 -> 5 | AK22: =iInputExample!AK25 -> 5 | AL22: =iInputExample!AL25 -> 5 | AM22: =iInputExample!AM25 -> 5 | AN22: =iInputExample!AN25 -> 5 | AO22: =iInputExample!AO25 -> 5 | AP22: =iInputExample!AP25 -> 5 | AQ22: =iInputExample!AQ25 -> 5 | AR22: =iInputExample!AR25 -> 5 | AS22: =iInputExample!AS25 -> 5 | AT22: =iInputExample!AT25 -> 5 | AU22: =iInputExample!AU25 -> 5 | AV22: =iInputExample!AV25 -> 5 | AW22: =iInputExample!AW25 -> 5 | AX22: =iInputExample!AX25 -> 5 | AY22: =iInputExample!AY25 -> 5 | AZ22: =iInputExample!AZ25 -> 5 | BA22: =iInputExample!BA25 -> 5 | BB22: =iInputExample!BB25 -> 5 | BC22: =iInputExample!BC25 -> 5 | BD22: =iInputExample!BD25 -> 5 | BE22: =iInputExample!BE25 -> 5 | BF22: =iInputExample!BF25 -> 5 | BG22: =iInputExample!BG25 -> 5 | BH22: =iInputExample!BH25 -> 5 | BI22: =iInputExample!BI25 -> 5 | BJ22: =iInputExample!BJ25 -> 5
F23: Grade B | G23: # | AA23: =iInputExample!AA26 -> 3 | AB23: =iInputExample!AB26 -> 3 | AC23: =iInputExample!AC26 -> 3 | AD23: =iInputExample!AD26 -> 3 | AE23: =iInputExample!AE26 -> 3 | AF23: =iInputExample!AF26 -> 3 | AG23: =iInputExample!AG26 -> 3 | AH23: =iInputExample!AH26 -> 3 | AI23: =iInputExample!AI26 -> 3 | AJ23: =iInputExample!AJ26 -> 3 | AK23: =iInputExample!AK26 -> 3 | AL23: =iInputExample!AL26 -> 3 | AM23: =iInputExample!AM26 -> 3 | AN23: =iInputExample!AN26 -> 3 | AO23: =iInputExample!AO26 -> 3 | AP23: =iInputExample!AP26 -> 3 | AQ23: =iInputExample!AQ26 -> 3 | AR23: =iInputExample!AR26 -> 3 | AS23: =iInputExample!AS26 -> 3 | AT23: =iInputExample!AT26 -> 3 | AU23: =iInputExample!AU26 -> 3 | AV23: =iInputExample!AV26 -> 3 | AW23: =iInputExample!AW26 -> 3 | AX23: =iInputExample!AX26 -> 3 | AY23: =iInputExample!AY26 -> 3 | AZ23: =iInputExample!AZ26 -> 3 | BA23: =iInputExample!BA26 -> 3 | BB23: =iInputExample!BB26 -> 3 | BC23: =iInputExample!BC26 -> 3 | BD23: =iInputExample!BD26 -> 3 | BE23: =iInputExample!BE26 -> 3 | BF23: =iInputExample!BF26 -> 3 | BG23: =iInputExample!BG26 -> 3 | BH23: =iInputExample!BH26 -> 3 | BI23: =iInputExample!BI26 -> 3 | BJ23: =iInputExample!BJ26 -> 3
F24: Grade C | G24: # | AA24: =iInputExample!AA27 -> 2 | AB24: =iInputExample!AB27 -> 2 | AC24: =iInputExample!AC27 -> 2 | AD24: =iInputExample!AD27 -> 2 | AE24: =iInputExample!AE27 -> 2 | AF24: =iInputExample!AF27 -> 2 | AG24: =iInputExample!AG27 -> 2 | AH24: =iInputExample!AH27 -> 2 | AI24: =iInputExample!AI27 -> 2 | AJ24: =iInputExample!AJ27 -> 2 | AK24: =iInputExample!AK27 -> 2 | AL24: =iInputExample!AL27 -> 2 | AM24: =iInputExample!AM27 -> 2 | AN24: =iInputExample!AN27 -> 2 | AO24: =iInputExample!AO27 -> 2 | AP24: =iInputExample!AP27 -> 2 | AQ24: =iInputExample!AQ27 -> 2 | AR24: =iInputExample!AR27 -> 2 | AS24: =iInputExample!AS27 -> 2 | AT24: =iInputExample!AT27 -> 2 | AU24: =iInputExample!AU27 -> 2 | AV24: =iInputExample!AV27 -> 2 | AW24: =iInputExample!AW27 -> 2 | AX24: =iInputExample!AX27 -> 2 | AY24: =iInputExample!AY27 -> 2 | AZ24: =iInputExample!AZ27 -> 2 | BA24: =iInputExample!BA27 -> 2 | BB24: =iInputExample!BB27 -> 2 | BC24: =iInputExample!BC27 -> 2 | BD24: =iInputExample!BD27 -> 2 | BE24: =iInputExample!BE27 -> 2 | BF24: =iInputExample!BF27 -> 2 | BG24: =iInputExample!BG27 -> 2 | BH24: =iInputExample!BH27 -> 2 | BI24: =iInputExample!BI27 -> 2 | BJ24: =iInputExample!BJ27 -> 2
F25: Grade D | G25: # | AA25: =iInputExample!AA28 -> 1 | AB25: =iInputExample!AB28 -> 1 | AC25: =iInputExample!AC28 -> 1 | AD25: =iInputExample!AD28 -> 1 | AE25: =iInputExample!AE28 -> 1 | AF25: =iInputExample!AF28 -> 1 | AG25: =iInputExample!AG28 -> 1 | AH25: =iInputExample!AH28 -> 1 | AI25: =iInputExample!AI28 -> 1 | AJ25: =iInputExample!AJ28 -> 1 | AK25: =iInputExample!AK28 -> 1 | AL25: =iInputExample!AL28 -> 1 | AM25: =iInputExample!AM28 -> 1 | AN25: =iInputExample!AN28 -> 1 | AO25: =iInputExample!AO28 -> 1 | AP25: =iInputExample!AP28 -> 1 | AQ25: =iInputExample!AQ28 -> 1 | AR25: =iInputExample!AR28 -> 1 | AS25: =iInputExample!AS28 -> 1 | AT25: =iInputExample!AT28 -> 1 | AU25: =iInputExample!AU28 -> 1 | AV25: =iInputExample!AV28 -> 1 | AW25: =iInputExample!AW28 -> 1 | AX25: =iInputExample!AX28 -> 1 | AY25: =iInputExample!AY28 -> 1 | AZ25: =iInputExample!AZ28 -> 1 | BA25: =iInputExample!BA28 -> 1 | BB25: =iInputExample!BB28 -> 1 | BC25: =iInputExample!BC28 -> 1 | BD25: =iInputExample!BD28 -> 1 | BE25: =iInputExample!BE28 -> 1 | BF25: =iInputExample!BF28 -> 1 | BG25: =iInputExample!BG28 -> 1 | BH25: =iInputExample!BH28 -> 1 | BI25: =iInputExample!BI28 -> 1 | BJ25: =iInputExample!BJ28 -> 1
F26: Grade E | G26: # | AA26: =iInputExample!AA29 -> 1 | AB26: =iInputExample!AB29 -> 1 | AC26: =iInputExample!AC29 -> 1 | AD26: =iInputExample!AD29 -> 1 | AE26: =iInputExample!AE29 -> 1 | AF26: =iInputExample!AF29 -> 1 | AG26: =iInputExample!AG29 -> 1 | AH26: =iInputExample!AH29 -> 1 | AI26: =iInputExample!AI29 -> 1 | AJ26: =iInputExample!AJ29 -> 1 | AK26: =iInputExample!AK29 -> 1 | AL26: =iInputExample!AL29 -> 1 | AM26: =iInputExample!AM29 -> 1 | AN26: =iInputExample!AN29 -> 1 | AO26: =iInputExample!AO29 -> 1 | AP26: =iInputExample!AP29 -> 1 | AQ26: =iInputExample!AQ29 -> 1 | AR26: =iInputExample!AR29 -> 1 | AS26: =iInputExample!AS29 -> 1 | AT26: =iInputExample!AT29 -> 1 | AU26: =iInputExample!AU29 -> 1 | AV26: =iInputExample!AV29 -> 1 | AW26: =iInputExample!AW29 -> 1 | AX26: =iInputExample!AX29 -> 1 | AY26: =iInputExample!AY29 -> 1 | AZ26: =iInputExample!AZ29 -> 1 | BA26: =iInputExample!BA29 -> 1 | BB26: =iInputExample!BB29 -> 1 | BC26: =iInputExample!BC29 -> 1 | BD26: =iInputExample!BD29 -> 1 | BE26: =iInputExample!BE29 -> 1 | BF26: =iInputExample!BF29 -> 1 | BG26: =iInputExample!BG29 -> 1 | BH26: =iInputExample!BH29 -> 1 | BI26: =iInputExample!BI29 -> 1 | BJ26: =iInputExample!BJ29 -> 1
F28: Annual Salaries by Grade
F29: Grade A | G29: £ 2021/22 | K29: =iInputExample!K33 -> 30000
F30: Grade B | G30: £ 2021/22 | K30: =iInputExample!K34 -> 32500
F31: Grade C | G31: £ 2021/22 | K31: =iInputExample!K35 -> 35000
F32: Grade D | G32: £ 2021/22 | K32: =iInputExample!K36 -> 37500
F33: Grade E | G33: £ 2021/22 | K33: =iInputExample!K37 -> 50000
F35: Calculations
F37: Monthly Salaries - Unindexed
F38: Grade A Unindexed Salaries | G38: £ 2021/22 | AA38: =$K29/cstMonthsInYr -> 2500 | AB38: 2500 | AC38: 2500 | AD38: 2500 | AE38: 2500 | AF38: 2500 | AG38: 2500 | AH38: 2500 | AI38: 2500 | AJ38: 2500 | AK38: 2500 | AL38: 2500 | AM38: 2500 | AN38: 2500 | AO38: 2500 | AP38: 2500 | AQ38: 2500 | AR38: 2500 | AS38: 2500 | AT38: 2500 | AU38: 2500 | AV38: 2500 | AW38: 2500 | AX38: 2500 | AY38: 2500 | AZ38: 2500 | BA38: 2500 | BB38: 2500 | BC38: 2500 | BD38: 2500 | BE38: 2500 | BF38: 2500 | BG38: 2500 | BH38: 2500 | BI38: 2500 | BJ38: 2500
F39: Grade B Unindexed Salaries | G39: £ 2021/22 | AA39: =$K30/cstMonthsInYr -> 2708.333333 | AB39: 2708.333333 | AC39: 2708.333333 | AD39: 2708.333333 | AE39: 2708.333333 | AF39: 2708.333333 | AG39: 2708.333333 | AH39: 2708.333333 | AI39: 2708.333333 | AJ39: 2708.333333 | AK39: 2708.333333 | AL39: 2708.333333 | AM39: 2708.333333 | AN39: 2708.333333 | AO39: 2708.333333 | AP39: 2708.333333 | AQ39: 2708.333333 | AR39: 2708.333333 | AS39: 2708.333333 | AT39: 2708.333333 | AU39: 2708.333333 | AV39: 2708.333333 | AW39: 2708.333333 | AX39: 2708.333333 | AY39: 2708.333333 | AZ39: 2708.333333 | BA39: 2708.333333 | BB39: 2708.333333 | BC39: 2708.333333 | BD39: 2708.333333 | BE39: 2708.333333 | BF39: 2708.333333 | BG39: 2708.333333 | BH39: 2708.333333 | BI39: 2708.333333 | BJ39: 2708.333333
F40: Grade C Unindexed Salaries | G40: £ 2021/22 | AA40: =$K31/cstMonthsInYr -> 2916.666667 | AB40: 2916.666667 | AC40: 2916.666667 | AD40: 2916.666667 | AE40: 2916.666667 | AF40: 2916.666667 | AG40: 2916.666667 | AH40: 2916.666667 | AI40: 2916.666667 | AJ40: 2916.666667 | AK40: 2916.666667 | AL40: 2916.666667 | AM40: 2916.666667 | AN40: 2916.666667 | AO40: 2916.666667 | AP40: 2916.666667 | AQ40: 2916.666667 | AR40: 2916.666667 | AS40: 2916.666667 | AT40: 2916.666667 | AU40: 2916.666667 | AV40: 2916.666667 | AW40: 2916.666667 | AX40: 2916.666667 | AY40: 2916.666667 | AZ40: 2916.666667 | BA40: 2916.666667 | BB40: 2916.666667 | BC40: 2916.666667 | BD40: 2916.666667 | BE40: 2916.666667 | BF40: 2916.666667 | BG40: 2916.666667 | BH40: 2916.666667 | BI40: 2916.666667 | BJ40: 2916.666667
F41: Grade D Unindexed Salaries | G41: £ 2021/22 | AA41: =$K32/cstMonthsInYr -> 3125 | AB41: 3125 | AC41: 3125 | AD41: 3125 | AE41: 3125 | AF41: 3125 | AG41: 3125 | AH41: 3125 | AI41: 3125 | AJ41: 3125 | AK41: 3125 | AL41: 3125 | AM41: 3125 | AN41: 3125 | AO41: 3125 | AP41: 3125 | AQ41: 3125 | AR41: 3125 | AS41: 3125 | AT41: 3125 | AU41: 3125 | AV41: 3125 | AW41: 3125 | AX41: 3125 | AY41: 3125 | AZ41: 3125 | BA41: 3125 | BB41: 3125 | BC41: 3125 | BD41: 3125 | BE41: 3125 | BF41: 3125 | BG41: 3125 | BH41: 3125 | BI41: 3125 | BJ41: 3125
F42: Grade E Unindexed Salaries | G42: £ 2021/22 | AA42: =$K33/cstMonthsInYr -> 4166.666667 | AB42: 4166.666667 | AC42: 4166.666667 | AD42: 4166.666667 | AE42: 4166.666667 | AF42: 4166.666667 | AG42: 4166.666667 | AH42: 4166.666667 | AI42: 4166.666667 | AJ42: 4166.666667 | AK42: 4166.666667 | AL42: 4166.666667 | AM42: 4166.666667 | AN42: 4166.666667 | AO42: 4166.666667 | AP42: 4166.666667 | AQ42: 4166.666667 | AR42: 4166.666667 | AS42: 4166.666667 | AT42: 4166.666667 | AU42: 4166.666667 | AV42: 4166.666667 | AW42: 4166.666667 | AX42: 4166.666667 | AY42: 4166.666667 | AZ42: 4166.666667 | BA42: 4166.666667 | BB42: 4166.666667 | BC42: 4166.666667 | BD42: 4166.666667 | BE42: 4166.666667 | BF42: 4166.666667 | BG42: 4166.666667 | BH42: 4166.666667 | BI42: 4166.666667 | BJ42: 4166.666667
F44: Inflation
F45: Inflation Rate - In Use | G45: % | AA45: =INDEX(AA16:AA17,MATCH($K$19,$F$16:$F$17,0)) -> 0 | AB45: 0 | AC45: 0 | AD45: 0 | AE45: 0 | AF45: 0 | AG45: 0 | AH45: 0 | AI45: 0 | AJ45: 0 | AK45: 0 | AL45: 0 | AM45: 0.01 | AN45: 0 | AO45: 0 | AP45: 0 | AQ45: 0 | AR45: 0 | AS45: 0 | AT45: 0 | AU45: 0 | AV45: 0 | AW45: 0 | AX45: 0 | AY45: 0.01 | AZ45: 0 | BA45: 0 | BB45: 0 | BC45: 0 | BD45: 0 | BE45: 0 | BF45: 0 | BG45: 0 | BH45: 0 | BI45: 0 | BJ45: 0
F46: Inflation Escalation Factor | G46: Factor | AA46: =IF(AA5=1,(1+AA45),(1+AA45)*Z46) -> 1 | AB46: =IF(AB5=1,(1+AB45),(1+AB45)*AA46) -> 1 | AC46: 1 | AD46: 1 | AE46: 1 | AF46: 1 | AG46: 1 | AH46: 1 | AI46: 1 | AJ46: 1 | AK46: 1 | AL46: 1 | AM46: 1.01 | AN46: 1.01 | AO46: 1.01 | AP46: 1.01 | AQ46: 1.01 | AR46: 1.01 | AS46: 1.01 | AT46: 1.01 | AU46: 1.01 | AV46: 1.01 | AW46: 1.01 | AX46: 1.01 | AY46: 1.0201 | AZ46: 1.0201 | BA46: 1.0201 | BB46: 1.0201 | BC46: 1.0201 | BD46: 1.0201 | BE46: 1.0201 | BF46: 1.0201 | BG46: 1.0201 | BH46: 1.0201 | BI46: 1.0201 | BJ46: 1.0201
F48: Monthly Salaries - Indexed
F49: Grade A Indexed Salaries | G49: GBP Nominal | AA49: =AA$46*AA38 -> 2500 | AB49: =AB$46*AB38 -> 2500 | AC49: 2500 | AD49: 2500 | AE49: 2500 | AF49: 2500 | AG49: 2500 | AH49: 2500 | AI49: 2500 | AJ49: 2500 | AK49: 2500 | AL49: 2500 | AM49: 2525 | AN49: 2525 | AO49: 2525 | AP49: 2525 | AQ49: 2525 | AR49: 2525 | AS49: 2525 | AT49: 2525 | AU49: 2525 | AV49: 2525 | AW49: 2525 | AX49: 2525 | AY49: 2550.25 | AZ49: 2550.25 | BA49: =BA$46*BA38 -> 2550.25 | BB49: 2550.25 | BC49: 2550.25 | BD49: 2550.25 | BE49: 2550.25 | BF49: 2550.25 | BG49: 2550.25 | BH49: 2550.25 | BI49: 2550.25 | BJ49: 2550.25
F50: Grade B Indexed Salaries | G50: GBP Nominal | AA50: =AA$46*AA39 -> 2708.333333 | AB50: 2708.333333 | AC50: 2708.333333 | AD50: 2708.333333 | AE50: 2708.333333 | AF50: 2708.333333 | AG50: 2708.333333 | AH50: 2708.333333 | AI50: 2708.333333 | AJ50: 2708.333333 | AK50: 2708.333333 | AL50: 2708.333333 | AM50: 2735.416667 | AN50: 2735.416667 | AO50: 2735.416667 | AP50: 2735.416667 | AQ50: 2735.416667 | AR50: 2735.416667 | AS50: 2735.416667 | AT50: 2735.416667 | AU50: 2735.416667 | AV50: 2735.416667 | AW50: 2735.416667 | AX50: 2735.416667 | AY50: 2762.770833 | AZ50: 2762.770833 | BA50: =BA$46*BA39 -> 2762.770833 | BB50: 2762.770833 | BC50: 2762.770833 | BD50: 2762.770833 | BE50: 2762.770833 | BF50: 2762.770833 | BG50: 2762.770833 | BH50: 2762.770833 | BI50: 2762.770833 | BJ50: 2762.770833
F51: Grade C Indexed Salaries | G51: GBP Nominal | AA51: =AA$46*AA40 -> 2916.666667 | AB51: 2916.666667 | AC51: 2916.666667 | AD51: 2916.666667 | AE51: 2916.666667 | AF51: 2916.666667 | AG51: 2916.666667 | AH51: 2916.666667 | AI51: 2916.666667 | AJ51: 2916.666667 | AK51: 2916.666667 | AL51: 2916.666667 | AM51: 2945.833333 | AN51: 2945.833333 | AO51: 2945.833333 | AP51: 2945.833333 | AQ51: 2945.833333 | AR51: 2945.833333 | AS51: 2945.833333 | AT51: 2945.833333 | AU51: 2945.833333 | AV51: 2945.833333 | AW51: 2945.833333 | AX51: 2945.833333 | AY51: 2975.291667 | AZ51: 2975.291667 | BA51: =BA$46*BA40 -> 2975.291667 | BB51: 2975.291667 | BC51: 2975.291667 | BD51: 2975.291667 | BE51: 2975.291667 | BF51: 2975.291667 | BG51: 2975.291667 | BH51: 2975.291667 | BI51: 2975.291667 | BJ51: 2975.291667
F52: Grade D Indexed Salaries | G52: GBP Nominal | AA52: =AA$46*AA41 -> 3125 | AB52: 3125 | AC52: 3125 | AD52: 3125 | AE52: 3125 | AF52: 3125 | AG52: 3125 | AH52: 3125 | AI52: 3125 | AJ52: 3125 | AK52: 3125 | AL52: 3125 | AM52: 3156.25 | AN52: 3156.25 | AO52: 3156.25 | AP52: 3156.25 | AQ52: 3156.25 | AR52: 3156.25 | AS52: 3156.25 | AT52: 3156.25 | AU52: 3156.25 | AV52: 3156.25 | AW52: 3156.25 | AX52: 3156.25 | AY52: 3187.8125 | AZ52: 3187.8125 | BA52: =BA$46*BA41 -> 3187.8125 | BB52: 3187.8125 | BC52: 3187.8125 | BD52: 3187.8125 | BE52: 3187.8125 | BF52: 3187.8125 | BG52: 3187.8125 | BH52: 3187.8125 | BI52: 3187.8125 | BJ52: 3187.8125
F53: Grade E Indexed Salaries | G53: GBP Nominal | AA53: =AA$46*AA42 -> 4166.666667 | AB53: 4166.666667 | AC53: 4166.666667 | AD53: 4166.666667 | AE53: 4166.666667 | AF53: 4166.666667 | AG53: 4166.666667 | AH53: 4166.666667 | AI53: 4166.666667 | AJ53: 4166.666667 | AK53: 4166.666667 | AL53: 4166.666667 | AM53: 4208.333333 | AN53: 4208.333333 | AO53: 4208.333333 | AP53: 4208.333333 | AQ53: 4208.333333 | AR53: 4208.333333 | AS53: 4208.333333 | AT53: 4208.333333 | AU53: 4208.333333 | AV53: 4208.333333 | AW53: 4208.333333 | AX53: 4208.333333 | AY53: 4250.416667 | AZ53: 4250.416667 | BA53: =BA$46*BA42 -> 4250.416667 | BB53: 4250.416667 | BC53: 4250.416667 | BD53: 4250.416667 | BE53: 4250.416667 | BF53: 4250.416667 | BG53: 4250.416667 | BH53: 4250.416667 | BI53: 4250.416667 | BJ53: 4250.416667
F55: Monthly Salaries - Total for all FTEs
F56: Grade A Indexed Costs | G56: GBP Nominal | AA56: =AA49*AA22 -> 12500 | AB56: =AB49*AB22 -> 12500 | AC56: 12500 | AD56: 12500 | AE56: 12500 | AF56: 12500 | AG56: 12500 | AH56: 12500 | AI56: 12500 | AJ56: 12500 | AK56: 12500 | AL56: 12500 | AM56: 12625 | AN56: 12625 | AO56: 12625 | AP56: 12625 | AQ56: 12625 | AR56: 12625 | AS56: 12625 | AT56: 12625 | AU56: 12625 | AV56: 12625 | AW56: 12625 | AX56: 12625 | AY56: 12751.25 | AZ56: 12751.25 | BA56: 12751.25 | BB56: 12751.25 | BC56: 12751.25 | BD56: 12751.25 | BE56: 12751.25 | BF56: 12751.25 | BG56: 12751.25 | BH56: 12751.25 | BI56: 12751.25 | BJ56: 12751.25 | BL56: =SUMIFS($AA56:$BK56,$AA$6:$BK$6,BL$6) -> 150000 | BM56: =SUMIFS($AA56:$BK56,$AA$6:$BK$6,BM$6) -> 151500 | BN56: 153015
F57: Grade B Indexed Costs | G57: GBP Nominal | AA57: =AA50*AA23 -> 8125 | AB57: 8125 | AC57: 8125 | AD57: 8125 | AE57: 8125 | AF57: 8125 | AG57: 8125 | AH57: 8125 | AI57: 8125 | AJ57: 8125 | AK57: 8125 | AL57: 8125 | AM57: 8206.25 | AN57: 8206.25 | AO57: 8206.25 | AP57: 8206.25 | AQ57: 8206.25 | AR57: 8206.25 | AS57: 8206.25 | AT57: 8206.25 | AU57: 8206.25 | AV57: 8206.25 | AW57: 8206.25 | AX57: 8206.25 | AY57: 8288.3125 | AZ57: 8288.3125 | BA57: 8288.3125 | BB57: 8288.3125 | BC57: 8288.3125 | BD57: 8288.3125 | BE57: 8288.3125 | BF57: 8288.3125 | BG57: 8288.3125 | BH57: 8288.3125 | BI57: 8288.3125 | BJ57: 8288.3125 | BL57: =SUMIFS($AA57:$BK57,$AA$6:$BK$6,BL$6) -> 97500 | BM57: 98475 | BN57: 99459.75
F58: Grade C Indexed Costs | G58: GBP Nominal | AA58: =AA51*AA24 -> 5833.333333 | AB58: 5833.333333 | AC58: 5833.333333 | AD58: 5833.333333 | AE58: 5833.333333 | AF58: 5833.333333 | AG58: 5833.333333 | AH58: 5833.333333 | AI58: 5833.333333 | AJ58: 5833.333333 | AK58: 5833.333333 | AL58: 5833.333333 | AM58: 5891.666667 | AN58: 5891.666667 | AO58: 5891.666667 | AP58: 5891.666667 | AQ58: 5891.666667 | AR58: 5891.666667 | AS58: 5891.666667 | AT58: 5891.666667 | AU58: 5891.666667 | AV58: 5891.666667 | AW58: 5891.666667 | AX58: 5891.666667 | AY58: 5950.583333 | AZ58: 5950.583333 | BA58: 5950.583333 | BB58: 5950.583333 | BC58: 5950.583333 | BD58: 5950.583333 | BE58: 5950.583333 | BF58: 5950.583333 | BG58: 5950.583333 | BH58: 5950.583333 | BI58: 5950.583333 | BJ58: 5950.583333 | BL58: 70000 | BM58: =SUMIFS($AA58:$BK58,$AA$6:$BK$6,BM$6) -> 70700 | BN58: 71407
F59: Grade D Indexed Costs | G59: GBP Nominal | AA59: =AA52*AA25 -> 3125 | AB59: 3125 | AC59: 3125 | AD59: 3125 | AE59: 3125 | AF59: 3125 | AG59: 3125 | AH59: 3125 | AI59: 3125 | AJ59: 3125 | AK59: 3125 | AL59: 3125 | AM59: 3156.25 | AN59: 3156.25 | AO59: 3156.25 | AP59: 3156.25 | AQ59: 3156.25 | AR59: 3156.25 | AS59: 3156.25 | AT59: 3156.25 | AU59: 3156.25 | AV59: 3156.25 | AW59: 3156.25 | AX59: 3156.25 | AY59: 3187.8125 | AZ59: 3187.8125 | BA59: 3187.8125 | BB59: 3187.8125 | BC59: 3187.8125 | BD59: 3187.8125 | BE59: 3187.8125 | BF59: 3187.8125 | BG59: 3187.8125 | BH59: 3187.8125 | BI59: 3187.8125 | BJ59: 3187.8125 | BL59: 37500 | BM59: 37875 | BN59: 38253.75
F60: Grade E Indexed Costs | G60: GBP Nominal | AA60: =AA53*AA26 -> 4166.666667 | AB60: 4166.666667 | AC60: 4166.666667 | AD60: 4166.666667 | AE60: 4166.666667 | AF60: 4166.666667 | AG60: 4166.666667 | AH60: 4166.666667 | AI60: 4166.666667 | AJ60: 4166.666667 | AK60: 4166.666667 | AL60: 4166.666667 | AM60: 4208.333333 | AN60: 4208.333333 | AO60: 4208.333333 | AP60: 4208.333333 | AQ60: 4208.333333 | AR60: 4208.333333 | AS60: 4208.333333 | AT60: 4208.333333 | AU60: 4208.333333 | AV60: 4208.333333 | AW60: 4208.333333 | AX60: 4208.333333 | AY60: 4250.416667 | AZ60: 4250.416667 | BA60: 4250.416667 | BB60: 4250.416667 | BC60: 4250.416667 | BD60: 4250.416667 | BE60: 4250.416667 | BF60: 4250.416667 | BG60: 4250.416667 | BH60: 4250.416667 | BI60: 4250.416667 | BJ60: 4250.416667 | BL60: 50000 | BM60: 50500 | BN60: 51005
F62: Total Staff Costs - Indexed | G62: GBP Nominal | AA62: =SUM(AA56:AA61) -> 33750 | AB62: =SUM(AB56:AB61) -> 33750 | AC62: =SUM(AC56:AC61) -> 33750 | AD62: =SUM(AD56:AD61) -> 33750 | AE62: =SUM(AE56:AE61) -> 33750 | AF62: =SUM(AF56:AF61) -> 33750 | AG62: =SUM(AG56:AG61) -> 33750 | AH62: =SUM(AH56:AH61) -> 33750 | AI62: =SUM(AI56:AI61) -> 33750 | AJ62: =SUM(AJ56:AJ61) -> 33750 | AK62: =SUM(AK56:AK61) -> 33750 | AL62: =SUM(AL56:AL61) -> 33750 | AM62: =SUM(AM56:AM61) -> 34087.5 | AN62: =SUM(AN56:AN61) -> 34087.5 | AO62: =SUM(AO56:AO61) -> 34087.5 | AP62: =SUM(AP56:AP61) -> 34087.5 | AQ62: =SUM(AQ56:AQ61) -> 34087.5 | AR62: =SUM(AR56:AR61) -> 34087.5 | AS62: =SUM(AS56:AS61) -> 34087.5 | AT62: =SUM(AT56:AT61) -> 34087.5 | AU62: =SUM(AU56:AU61) -> 34087.5 | AV62: =SUM(AV56:AV61) -> 34087.5 | AW62: =SUM(AW56:AW61) -> 34087.5 | AX62: =SUM(AX56:AX61) -> 34087.5 | AY62: =SUM(AY56:AY61) -> 34428.375 | AZ62: =SUM(AZ56:AZ61) -> 34428.375 | BA62: 34428.375 | BB62: 34428.375 | BC62: 34428.375 | BD62: 34428.375 | BE62: 34428.375 | BF62: 34428.375 | BG62: 34428.375 | BH62: 34428.375 | BI62: 34428.375 | BJ62: 34428.375 | BL62: =SUM(BL56:BL61) -> 405000 | BM62: 409050 | BN62: 413140.5
A64: =SUM(AA64:BN64) -> 0 | F64: Error Check | AA64: =IF(ABS(SUMPRODUCT(AA49:AA53,AA22:AA26) - AA62)<eTol,0,1) -> 0 | AB64: 0 | AC64: 0 | AD64: 0 | AE64: 0 | AF64: 0 | AG64: 0 | AH64: 0 | AI64: 0 | AJ64: 0 | AK64: 0 | AL64: 0 | AM64: 0 | AN64: 0 | AO64: 0 | AP64: 0 | AQ64: 0 | AR64: 0 | AS64: 0 | AT64: 0 | AU64: 0 | AV64: 0 | AW64: 0 | AX64: 0 | AY64: 0 | AZ64: 0 | BA64: 0 | BB64: 0 | BC64: 0 | BD64: 0 | BE64: 0 | BF64: 0 | BG64: 0 | BH64: 0 | BI64: 0 | BJ64: 0 | BL64: =IF(ABS(SUM(AA62:BJ62) - SUM(BL62:BN62))<eTol,0,1) -> 0
D66: END OF WORKSHEET - INSERT ROWS ABOVE

Sheet Output>>

Sheet oSummaryExample
C1: THIS SHOULD COST MODEL BUILD TEMPLATE IS FOR GUIDANCE ONLY. PLEASE REMOVE GCF BRANDING AND UPDATE TO REFLECT THE BRANDING OF YOUR CONTRACTING AUTHORITY PRIOR TO POPULATING IT.
C2: =cstProjectName -> SCM Build Template | Z2: =SysTime!Z2 -> Period Start | AA2: =SysTime!AA2 -> 2021-04-01 | AB2: =SysTime!AB2 -> 2021-05-01 | AC2: =SysTime!AC2 -> 2021-06-01 | AD2: =SysTime!AD2 -> 2021-07-01 | AE2: =SysTime!AE2 -> 2021-08-01 | AF2: =SysTime!AF2 -> 2021-09-01 | AG2: =SysTime!AG2 -> 2021-10-01 | AH2: =SysTime!AH2 -> 2021-11-01 | AI2: =SysTime!AI2 -> 2021-12-01 | AJ2: =SysTime!AJ2 -> 2022-01-01 | AK2: =SysTime!AK2 -> 2022-02-01 | AL2: =SysTime!AL2 -> 2022-03-01 | AM2: =SysTime!AM2 -> 2022-04-01 | AN2: =SysTime!AN2 -> 2022-05-01 | AO2: =SysTime!AO2 -> 2022-06-01 | AP2: =SysTime!AP2 -> 2022-07-01 | AQ2: =SysTime!AQ2 -> 2022-08-01 | AR2: =SysTime!AR2 -> 2022-09-01 | AS2: =SysTime!AS2 -> 2022-10-01 | AT2: =SysTime!AT2 -> 2022-11-01 | AU2: =SysTime!AU2 -> 2022-12-01 | AV2: =SysTime!AV2 -> 2023-01-01 | AW2: =SysTime!AW2 -> 2023-02-01 | AX2: =SysTime!AX2 -> 2023-03-01 | AY2: =SysTime!AY2 -> 2023-04-01 | AZ2: =SysTime!AZ2 -> 2023-05-01 | BA2: =SysTime!BA2 -> 2023-06-01 | BB2: =SysTime!BB2 -> 2023-07-01 | BC2: =SysTime!BC2 -> 2023-08-01 | BD2: =SysTime!BD2 -> 2023-09-01 | BE2: =SysTime!BE2 -> 2023-10-01 | BF2: =SysTime!BF2 -> 2023-11-01 | BG2: =SysTime!BG2 -> 2023-12-01 | BH2: =SysTime!BH2 -> 2024-01-01 | BI2: =SysTime!BI2 -> 2024-02-01 | BJ2: =SysTime!BJ2 -> 2024-03-01 | BL2: =SysTime!BL2 -> 2021-04-01 | BM2: =SysTime!BM2 -> 2022-04-01 | BN2: =SysTime!BN2 -> 2023-04-01
C3: =MID(CELL("filename",A1),FIND("]",CELL("filename",A1))+1,256)&" Sheet" -> oSummaryExample Sheet | Z3: =SysTime!Z3 -> Period End | AA3: =SysTime!AA3 -> 2021-04-30 | AB3: =SysTime!AB3 -> 2021-05-31 | AC3: =SysTime!AC3 -> 2021-06-30 | AD3: =SysTime!AD3 -> 2021-07-31 | AE3: =SysTime!AE3 -> 2021-08-31 | AF3: =SysTime!AF3 -> 2021-09-30 | AG3: =SysTime!AG3 -> 2021-10-31 | AH3: =SysTime!AH3 -> 2021-11-30 | AI3: =SysTime!AI3 -> 2021-12-31 | AJ3: =SysTime!AJ3 -> 2022-01-31 | AK3: =SysTime!AK3 -> 2022-02-28 | AL3: =SysTime!AL3 -> 2022-03-31 | AM3: =SysTime!AM3 -> 2022-04-30 | AN3: =SysTime!AN3 -> 2022-05-31 | AO3: =SysTime!AO3 -> 2022-06-30 | AP3: =SysTime!AP3 -> 2022-07-31 | AQ3: =SysTime!AQ3 -> 2022-08-31 | AR3: =SysTime!AR3 -> 2022-09-30 | AS3: =SysTime!AS3 -> 2022-10-31 | AT3: =SysTime!AT3 -> 2022-11-30 | AU3: =SysTime!AU3 -> 2022-12-31 | AV3: =SysTime!AV3 -> 2023-01-31 | AW3: =SysTime!AW3 -> 2023-02-28 | AX3: =SysTime!AX3 -> 2023-03-31 | AY3: =SysTime!AY3 -> 2023-04-30 | AZ3: =SysTime!AZ3 -> 2023-05-31 | BA3: =SysTime!BA3 -> 2023-06-30 | BB3: =SysTime!BB3 -> 2023-07-31 | BC3: =SysTime!BC3 -> 2023-08-31 | BD3: =SysTime!BD3 -> 2023-09-30 | BE3: =SysTime!BE3 -> 2023-10-31 | BF3: =SysTime!BF3 -> 2023-11-30 | BG3: =SysTime!BG3 -> 2023-12-31 | BH3: =SysTime!BH3 -> 2024-01-31 | BI3: =SysTime!BI3 -> 2024-02-29 | BJ3: =SysTime!BJ3 -> 2024-03-31 | BL3: =SysTime!BL3 -> 2022-03-31 | BM3: =SysTime!BM3 -> 2023-03-31 | BN3: =SysTime!BN3 -> 2024-03-31
C4: =IF(ISBLANK(cstProtectiveMarking),"",cstProtectiveMarking) -> OFFICIAL | Z4: =SysTime!Z4 -> Timeline | AA4: =SysTime!AA4 -> Monthly | AB4: =SysTime!AB4 -> Monthly | AC4: =SysTime!AC4 -> Monthly | AD4: =SysTime!AD4 -> Monthly | AE4: =SysTime!AE4 -> Monthly | AF4: =SysTime!AF4 -> Monthly | AG4: =SysTime!AG4 -> Monthly | AH4: =SysTime!AH4 -> Monthly | AI4: =SysTime!AI4 -> Monthly | AJ4: =SysTime!AJ4 -> Monthly | AK4: =SysTime!AK4 -> Monthly | AL4: =SysTime!AL4 -> Monthly | AM4: =SysTime!AM4 -> Monthly | AN4: =SysTime!AN4 -> Monthly | AO4: =SysTime!AO4 -> Monthly | AP4: =SysTime!AP4 -> Monthly | AQ4: =SysTime!AQ4 -> Monthly | AR4: =SysTime!AR4 -> Monthly | AS4: =SysTime!AS4 -> Monthly | AT4: =SysTime!AT4 -> Monthly | AU4: =SysTime!AU4 -> Monthly | AV4: =SysTime!AV4 -> Monthly | AW4: =SysTime!AW4 -> Monthly | AX4: =SysTime!AX4 -> Monthly | AY4: =SysTime!AY4 -> Monthly | AZ4: =SysTime!AZ4 -> Monthly | BA4: =SysTime!BA4 -> Monthly | BB4: =SysTime!BB4 -> Monthly | BC4: =SysTime!BC4 -> Monthly | BD4: =SysTime!BD4 -> Monthly | BE4: =SysTime!BE4 -> Monthly | BF4: =SysTime!BF4 -> Monthly | BG4: =SysTime!BG4 -> Monthly | BH4: =SysTime!BH4 -> Monthly | BI4: =SysTime!BI4 -> Monthly | BJ4: =SysTime!BJ4 -> Monthly | BL4: =SysTime!BL4 -> Annual | BM4: =SysTime!BM4 -> Annual | BN4: =SysTime!BN4 -> Annual
C5: =HYPERLINK("#'Contents'!A1",sysChkWord) -> All Checks OK | Z5: =SysTime!Z5 -> Period index | AA5: =SysTime!AA5 -> 1 | AB5: =SysTime!AB5 -> 2 | AC5: =SysTime!AC5 -> 3 | AD5: =SysTime!AD5 -> 4 | AE5: =SysTime!AE5 -> 5 | AF5: =SysTime!AF5 -> 6 | AG5: =SysTime!AG5 -> 7 | AH5: =SysTime!AH5 -> 8 | AI5: =SysTime!AI5 -> 9 | AJ5: =SysTime!AJ5 -> 10 | AK5: =SysTime!AK5 -> 11 | AL5: =SysTime!AL5 -> 12 | AM5: =SysTime!AM5 -> 13 | AN5: =SysTime!AN5 -> 14 | AO5: =SysTime!AO5 -> 15 | AP5: =SysTime!AP5 -> 16 | AQ5: =SysTime!AQ5 -> 17 | AR5: =SysTime!AR5 -> 18 | AS5: =SysTime!AS5 -> 19 | AT5: =SysTime!AT5 -> 20 | AU5: =SysTime!AU5 -> 21 | AV5: =SysTime!AV5 -> 22 | AW5: =SysTime!AW5 -> 23 | AX5: =SysTime!AX5 -> 24 | AY5: =SysTime!AY5 -> 25 | AZ5: =SysTime!AZ5 -> 26 | BA5: =SysTime!BA5 -> 27 | BB5: =SysTime!BB5 -> 28 | BC5: =SysTime!BC5 -> 29 | BD5: =SysTime!BD5 -> 30 | BE5: =SysTime!BE5 -> 31 | BF5: =SysTime!BF5 -> 32 | BG5: =SysTime!BG5 -> 33 | BH5: =SysTime!BH5 -> 34 | BI5: =SysTime!BI5 -> 35 | BJ5: =SysTime!BJ5 -> 36 | BL5: =SysTime!BL5 -> 1 | BM5: =SysTime!BM5 -> 2 | BN5: =SysTime!BN5 -> 3
C6: =HYPERLINK("#'Contents'!A1","Click for Contents") -> Click for Contents | Z6: =SysTime!Z6 -> Year index | AA6: =SysTime!AA6 -> 1 | AB6: =SysTime!AB6 -> 1 | AC6: =SysTime!AC6 -> 1 | AD6: =SysTime!AD6 -> 1 | AE6: =SysTime!AE6 -> 1 | AF6: =SysTime!AF6 -> 1 | AG6: =SysTime!AG6 -> 1 | AH6: =SysTime!AH6 -> 1 | AI6: =SysTime!AI6 -> 1 | AJ6: =SysTime!AJ6 -> 1 | AK6: =SysTime!AK6 -> 1 | AL6: =SysTime!AL6 -> 1 | AM6: =SysTime!AM6 -> 2 | AN6: =SysTime!AN6 -> 2 | AO6: =SysTime!AO6 -> 2 | AP6: =SysTime!AP6 -> 2 | AQ6: =SysTime!AQ6 -> 2 | AR6: =SysTime!AR6 -> 2 | AS6: =SysTime!AS6 -> 2 | AT6: =SysTime!AT6 -> 2 | AU6: =SysTime!AU6 -> 2 | AV6: =SysTime!AV6 -> 2 | AW6: =SysTime!AW6 -> 2 | AX6: =SysTime!AX6 -> 2 | AY6: =SysTime!AY6 -> 3 | AZ6: =SysTime!AZ6 -> 3 | BA6: =SysTime!BA6 -> 3 | BB6: =SysTime!BB6 -> 3 | BC6: =SysTime!BC6 -> 3 | BD6: =SysTime!BD6 -> 3 | BE6: =SysTime!BE6 -> 3 | BF6: =SysTime!BF6 -> 3 | BG6: =SysTime!BG6 -> 3 | BH6: =SysTime!BH6 -> 3 | BI6: =SysTime!BI6 -> 3 | BJ6: =SysTime!BJ6 -> 3 | BL6: =SysTime!BL6 -> 1 | BM6: =SysTime!BM6 -> 2 | BN6: =SysTime!BN6 -> 3
Z7: =SysTime!Z7 -> Relative period | AA7: =SysTime!AA7 -> 1 | AB7: =SysTime!AB7 -> 2 | AC7: =SysTime!AC7 -> 3 | AD7: =SysTime!AD7 -> 4 | AE7: =SysTime!AE7 -> 5 | AF7: =SysTime!AF7 -> 6 | AG7: =SysTime!AG7 -> 7 | AH7: =SysTime!AH7 -> 8 | AI7: =SysTime!AI7 -> 9 | AJ7: =SysTime!AJ7 -> 10 | AK7: =SysTime!AK7 -> 11 | AL7: =SysTime!AL7 -> 12 | AM7: =SysTime!AM7 -> 1 | AN7: =SysTime!AN7 -> 2 | AO7: =SysTime!AO7 -> 3 | AP7: =SysTime!AP7 -> 4 | AQ7: =SysTime!AQ7 -> 5 | AR7: =SysTime!AR7 -> 6 | AS7: =SysTime!AS7 -> 7 | AT7: =SysTime!AT7 -> 8 | AU7: =SysTime!AU7 -> 9 | AV7: =SysTime!AV7 -> 10 | AW7: =SysTime!AW7 -> 11 | AX7: =SysTime!AX7 -> 12 | AY7: =SysTime!AY7 -> 1 | AZ7: =SysTime!AZ7 -> 2 | BA7: =SysTime!BA7 -> 3 | BB7: =SysTime!BB7 -> 4 | BC7: =SysTime!BC7 -> 5 | BD7: =SysTime!BD7 -> 6 | BE7: =SysTime!BE7 -> 7 | BF7: =SysTime!BF7 -> 8 | BG7: =SysTime!BG7 -> 9 | BH7: =SysTime!BH7 -> 10 | BI7: =SysTime!BI7 -> 11 | BJ7: =SysTime!BJ7 -> 12 | BL7: =SysTime!BL7 -> 1 | BM7: =SysTime!BM7 -> 2 | BN7: =SysTime!BN7 -> 3
A8: =SUM(A9:A20) -> 0 | B8: =SUM(B9:B20) -> 0 | G8: Units | Z8: Total
C9: See User Guide for QA Limitations
D10: 1. Costs Summary
A12: =COUNTBLANK(AA12:BJ12) + COUNTBLANK(BL12:BN12) -> 0 | F12: Staff Costs | G12: GBP Nominal | Z12: =SUM(AA12:BJ12) -> 1227190.5 | AA12: =cCalcExample!AA62 -> 33750 | AB12: =cCalcExample!AB62 -> 33750 | AC12: =cCalcExample!AC62 -> 33750 | AD12: =cCalcExample!AD62 -> 33750 | AE12: =cCalcExample!AE62 -> 33750 | AF12: =cCalcExample!AF62 -> 33750 | AG12: =cCalcExample!AG62 -> 33750 | AH12: =cCalcExample!AH62 -> 33750 | AI12: =cCalcExample!AI62 -> 33750 | AJ12: =cCalcExample!AJ62 -> 33750 | AK12: =cCalcExample!AK62 -> 33750 | AL12: =cCalcExample!AL62 -> 33750 | AM12: =cCalcExample!AM62 -> 34087.5 | AN12: =cCalcExample!AN62 -> 34087.5 | AO12: =cCalcExample!AO62 -> 34087.5 | AP12: =cCalcExample!AP62 -> 34087.5 | AQ12: =cCalcExample!AQ62 -> 34087.5 | AR12: =cCalcExample!AR62 -> 34087.5 | AS12: =cCalcExample!AS62 -> 34087.5 | AT12: =cCalcExample!AT62 -> 34087.5 | AU12: =cCalcExample!AU62 -> 34087.5 | AV12: =cCalcExample!AV62 -> 34087.5 | AW12: =cCalcExample!AW62 -> 34087.5 | AX12: =cCalcExample!AX62 -> 34087.5 | AY12: =cCalcExample!AY62 -> 34428.375 | AZ12: =cCalcExample!AZ62 -> 34428.375 | BA12: =cCalcExample!BA62 -> 34428.375 | BB12: =cCalcExample!BB62 -> 34428.375 | BC12: =cCalcExample!BC62 -> 34428.375 | BD12: =cCalcExample!BD62 -> 34428.375 | BE12: =cCalcExample!BE62 -> 34428.375 | BF12: =cCalcExample!BF62 -> 34428.375 | BG12: =cCalcExample!BG62 -> 34428.375 | BH12: =cCalcExample!BH62 -> 34428.375 | BI12: =cCalcExample!BI62 -> 34428.375 | BJ12: =cCalcExample!BJ62 -> 34428.375 | BL12: =cCalcExample!BL62 -> 405000 | BM12: =cCalcExample!BM62 -> 409050 | BN12: =cCalcExample!BN62 -> 413140.5
F13: Cost Line Item 2 - To be completed | G13: GBP Nominal
F14: Cost Line Item 3 - To be completed | G14: GBP Nominal
F15: Cost Line Item 4 - To be completed | G15: GBP Nominal
F16: Cost Line Item 5 - To be completed | G16: GBP Nominal
A18: =IF(ABS(SUM(AA18:BJ18)-SUM(BL18:BN18))<eTol,0,1) -> 0 | F18: Total Costs | G18: GBP Nominal | Z18: =SUM(AA18:BJ18) -> 1227190.5 | AA18: =SUM(AA12:AA17) -> 33750 | AB18: =SUM(AB12:AB17) -> 33750 | AC18: 33750 | AD18: 33750 | AE18: 33750 | AF18: 33750 | AG18: 33750 | AH18: 33750 | AI18: 33750 | AJ18: 33750 | AK18: 33750 | AL18: 33750 | AM18: 34087.5 | AN18: 34087.5 | AO18: 34087.5 | AP18: 34087.5 | AQ18: 34087.5 | AR18: 34087.5 | AS18: 34087.5 | AT18: 34087.5 | AU18: 34087.5 | AV18: 34087.5 | AW18: 34087.5 | AX18: 34087.5 | AY18: 34428.375 | AZ18: 34428.375 | BA18: 34428.375 | BB18: 34428.375 | BC18: 34428.375 | BD18: 34428.375 | BE18: 34428.375 | BF18: 34428.375 | BG18: 34428.375 | BH18: 34428.375 | BI18: 34428.375 | BJ18: 34428.375 | BL18: 405000 | BM18: 409050 | BN18: 413140.5
D20: END OF WORKSHEET - INSERT ROWS ABOVE

Sheet Templates>>

Sheet TimeTemp
C1: THIS SHOULD COST MODEL BUILD TEMPLATE IS FOR GUIDANCE ONLY. PLEASE REMOVE GCF BRANDING AND UPDATE TO REFLECT THE BRANDING OF YOUR CONTRACTING AUTHORITY PRIOR TO POPULATING IT.
C2: =cstProjectName -> SCM Build Template | Z2: =SysTime!Z2 -> Period Start | AA2: =SysTime!AA2 -> 2021-04-01 | AB2: =SysTime!AB2 -> 2021-05-01 | AC2: =SysTime!AC2 -> 2021-06-01 | AD2: =SysTime!AD2 -> 2021-07-01 | AE2: =SysTime!AE2 -> 2021-08-01 | AF2: =SysTime!AF2 -> 2021-09-01 | AG2: =SysTime!AG2 -> 2021-10-01 | AH2: =SysTime!AH2 -> 2021-11-01 | AI2: =SysTime!AI2 -> 2021-12-01 | AJ2: =SysTime!AJ2 -> 2022-01-01 | AK2: =SysTime!AK2 -> 2022-02-01 | AL2: =SysTime!AL2 -> 2022-03-01 | AM2: =SysTime!AM2 -> 2022-04-01 | AN2: =SysTime!AN2 -> 2022-05-01 | AO2: =SysTime!AO2 -> 2022-06-01 | AP2: =SysTime!AP2 -> 2022-07-01 | AQ2: =SysTime!AQ2 -> 2022-08-01 | AR2: =SysTime!AR2 -> 2022-09-01 | AS2: =SysTime!AS2 -> 2022-10-01 | AT2: =SysTime!AT2 -> 2022-11-01 | AU2: =SysTime!AU2 -> 2022-12-01 | AV2: =SysTime!AV2 -> 2023-01-01 | AW2: =SysTime!AW2 -> 2023-02-01 | AX2: =SysTime!AX2 -> 2023-03-01 | AY2: =SysTime!AY2 -> 2023-04-01 | AZ2: =SysTime!AZ2 -> 2023-05-01 | BA2: =SysTime!BA2 -> 2023-06-01 | BB2: =SysTime!BB2 -> 2023-07-01 | BC2: =SysTime!BC2 -> 2023-08-01 | BD2: =SysTime!BD2 -> 2023-09-01 | BE2: =SysTime!BE2 -> 2023-10-01 | BF2: =SysTime!BF2 -> 2023-11-01 | BG2: =SysTime!BG2 -> 2023-12-01 | BH2: =SysTime!BH2 -> 2024-01-01 | BI2: =SysTime!BI2 -> 2024-02-01 | BJ2: =SysTime!BJ2 -> 2024-03-01 | BL2: =SysTime!BL2 -> 2021-04-01 | BM2: =SysTime!BM2 -> 2022-04-01 | BN2: =SysTime!BN2 -> 2023-04-01
C3: =MID(CELL("filename",A1),FIND("]",CELL("filename",A1))+1,256)&" Sheet" -> TimeTemp Sheet | Z3: =SysTime!Z3 -> Period End | AA3: =SysTime!AA3 -> 2021-04-30 | AB3: =SysTime!AB3 -> 2021-05-31 | AC3: =SysTime!AC3 -> 2021-06-30 | AD3: =SysTime!AD3 -> 2021-07-31 | AE3: =SysTime!AE3 -> 2021-08-31 | AF3: =SysTime!AF3 -> 2021-09-30 | AG3: =SysTime!AG3 -> 2021-10-31 | AH3: =SysTime!AH3 -> 2021-11-30 | AI3: =SysTime!AI3 -> 2021-12-31 | AJ3: =SysTime!AJ3 -> 2022-01-31 | AK3: =SysTime!AK3 -> 2022-02-28 | AL3: =SysTime!AL3 -> 2022-03-31 | AM3: =SysTime!AM3 -> 2022-04-30 | AN3: =SysTime!AN3 -> 2022-05-31 | AO3: =SysTime!AO3 -> 2022-06-30 | AP3: =SysTime!AP3 -> 2022-07-31 | AQ3: =SysTime!AQ3 -> 2022-08-31 | AR3: =SysTime!AR3 -> 2022-09-30 | AS3: =SysTime!AS3 -> 2022-10-31 | AT3: =SysTime!AT3 -> 2022-11-30 | AU3: =SysTime!AU3 -> 2022-12-31 | AV3: =SysTime!AV3 -> 2023-01-31 | AW3: =SysTime!AW3 -> 2023-02-28 | AX3: =SysTime!AX3 -> 2023-03-31 | AY3: =SysTime!AY3 -> 2023-04-30 | AZ3: =SysTime!AZ3 -> 2023-05-31 | BA3: =SysTime!BA3 -> 2023-06-30 | BB3: =SysTime!BB3 -> 2023-07-31 | BC3: =SysTime!BC3 -> 2023-08-31 | BD3: =SysTime!BD3 -> 2023-09-30 | BE3: =SysTime!BE3 -> 2023-10-31 | BF3: =SysTime!BF3 -> 2023-11-30 | BG3: =SysTime!BG3 -> 2023-12-31 | BH3: =SysTime!BH3 -> 2024-01-31 | BI3: =SysTime!BI3 -> 2024-02-29 | BJ3: =SysTime!BJ3 -> 2024-03-31 | BL3: =SysTime!BL3 -> 2022-03-31 | BM3: =SysTime!BM3 -> 2023-03-31 | BN3: =SysTime!BN3 -> 2024-03-31
C4: =IF(ISBLANK(cstProtectiveMarking),"",cstProtectiveMarking) -> OFFICIAL | Z4: =SysTime!Z4 -> Timeline | AA4: =SysTime!AA4 -> Monthly | AB4: =SysTime!AB4 -> Monthly | AC4: =SysTime!AC4 -> Monthly | AD4: =SysTime!AD4 -> Monthly | AE4: =SysTime!AE4 -> Monthly | AF4: =SysTime!AF4 -> Monthly | AG4: =SysTime!AG4 -> Monthly | AH4: =SysTime!AH4 -> Monthly | AI4: =SysTime!AI4 -> Monthly | AJ4: =SysTime!AJ4 -> Monthly | AK4: =SysTime!AK4 -> Monthly | AL4: =SysTime!AL4 -> Monthly | AM4: =SysTime!AM4 -> Monthly | AN4: =SysTime!AN4 -> Monthly | AO4: =SysTime!AO4 -> Monthly | AP4: =SysTime!AP4 -> Monthly | AQ4: =SysTime!AQ4 -> Monthly | AR4: =SysTime!AR4 -> Monthly | AS4: =SysTime!AS4 -> Monthly | AT4: =SysTime!AT4 -> Monthly | AU4: =SysTime!AU4 -> Monthly | AV4: =SysTime!AV4 -> Monthly | AW4: =SysTime!AW4 -> Monthly | AX4: =SysTime!AX4 -> Monthly | AY4: =SysTime!AY4 -> Monthly | AZ4: =SysTime!AZ4 -> Monthly | BA4: =SysTime!BA4 -> Monthly | BB4: =SysTime!BB4 -> Monthly | BC4: =SysTime!BC4 -> Monthly | BD4: =SysTime!BD4 -> Monthly | BE4: =SysTime!BE4 -> Monthly | BF4: =SysTime!BF4 -> Monthly | BG4: =SysTime!BG4 -> Monthly | BH4: =SysTime!BH4 -> Monthly | BI4: =SysTime!BI4 -> Monthly | BJ4: =SysTime!BJ4 -> Monthly | BL4: =SysTime!BL4 -> Annual | BM4: =SysTime!BM4 -> Annual | BN4: =SysTime!BN4 -> Annual
C5: =HYPERLINK("#'Contents'!A1",sysChkWord) -> All Checks OK | Z5: =SysTime!Z5 -> Period index | AA5: =SysTime!AA5 -> 1 | AB5: =SysTime!AB5 -> 2 | AC5: =SysTime!AC5 -> 3 | AD5: =SysTime!AD5 -> 4 | AE5: =SysTime!AE5 -> 5 | AF5: =SysTime!AF5 -> 6 | AG5: =SysTime!AG5 -> 7 | AH5: =SysTime!AH5 -> 8 | AI5: =SysTime!AI5 -> 9 | AJ5: =SysTime!AJ5 -> 10 | AK5: =SysTime!AK5 -> 11 | AL5: =SysTime!AL5 -> 12 | AM5: =SysTime!AM5 -> 13 | AN5: =SysTime!AN5 -> 14 | AO5: =SysTime!AO5 -> 15 | AP5: =SysTime!AP5 -> 16 | AQ5: =SysTime!AQ5 -> 17 | AR5: =SysTime!AR5 -> 18 | AS5: =SysTime!AS5 -> 19 | AT5: =SysTime!AT5 -> 20 | AU5: =SysTime!AU5 -> 21 | AV5: =SysTime!AV5 -> 22 | AW5: =SysTime!AW5 -> 23 | AX5: =SysTime!AX5 -> 24 | AY5: =SysTime!AY5 -> 25 | AZ5: =SysTime!AZ5 -> 26 | BA5: =SysTime!BA5 -> 27 | BB5: =SysTime!BB5 -> 28 | BC5: =SysTime!BC5 -> 29 | BD5: =SysTime!BD5 -> 30 | BE5: =SysTime!BE5 -> 31 | BF5: =SysTime!BF5 -> 32 | BG5: =SysTime!BG5 -> 33 | BH5: =SysTime!BH5 -> 34 | BI5: =SysTime!BI5 -> 35 | BJ5: =SysTime!BJ5 -> 36 | BL5: =SysTime!BL5 -> 1 | BM5: =SysTime!BM5 -> 2 | BN5: =SysTime!BN5 -> 3
C6: =HYPERLINK("#'Contents'!A1","Click for Contents") -> Click for Contents | Z6: =SysTime!Z6 -> Year index | AA6: =SysTime!AA6 -> 1 | AB6: =SysTime!AB6 -> 1 | AC6: =SysTime!AC6 -> 1 | AD6: =SysTime!AD6 -> 1 | AE6: =SysTime!AE6 -> 1 | AF6: =SysTime!AF6 -> 1 | AG6: =SysTime!AG6 -> 1 | AH6: =SysTime!AH6 -> 1 | AI6: =SysTime!AI6 -> 1 | AJ6: =SysTime!AJ6 -> 1 | AK6: =SysTime!AK6 -> 1 | AL6: =SysTime!AL6 -> 1 | AM6: =SysTime!AM6 -> 2 | AN6: =SysTime!AN6 -> 2 | AO6: =SysTime!AO6 -> 2 | AP6: =SysTime!AP6 -> 2 | AQ6: =SysTime!AQ6 -> 2 | AR6: =SysTime!AR6 -> 2 | AS6: =SysTime!AS6 -> 2 | AT6: =SysTime!AT6 -> 2 | AU6: =SysTime!AU6 -> 2 | AV6: =SysTime!AV6 -> 2 | AW6: =SysTime!AW6 -> 2 | AX6: =SysTime!AX6 -> 2 | AY6: =SysTime!AY6 -> 3 | AZ6: =SysTime!AZ6 -> 3 | BA6: =SysTime!BA6 -> 3 | BB6: =SysTime!BB6 -> 3 | BC6: =SysTime!BC6 -> 3 | BD6: =SysTime!BD6 -> 3 | BE6: =SysTime!BE6 -> 3 | BF6: =SysTime!BF6 -> 3 | BG6: =SysTime!BG6 -> 3 | BH6: =SysTime!BH6 -> 3 | BI6: =SysTime!BI6 -> 3 | BJ6: =SysTime!BJ6 -> 3 | BL6: =SysTime!BL6 -> 1 | BM6: =SysTime!BM6 -> 2 | BN6: =SysTime!BN6 -> 3
Z7: =SysTime!Z7 -> Relative period | AA7: =SysTime!AA7 -> 1 | AB7: =SysTime!AB7 -> 2 | AC7: =SysTime!AC7 -> 3 | AD7: =SysTime!AD7 -> 4 | AE7: =SysTime!AE7 -> 5 | AF7: =SysTime!AF7 -> 6 | AG7: =SysTime!AG7 -> 7 | AH7: =SysTime!AH7 -> 8 | AI7: =SysTime!AI7 -> 9 | AJ7: =SysTime!AJ7 -> 10 | AK7: =SysTime!AK7 -> 11 | AL7: =SysTime!AL7 -> 12 | AM7: =SysTime!AM7 -> 1 | AN7: =SysTime!AN7 -> 2 | AO7: =SysTime!AO7 -> 3 | AP7: =SysTime!AP7 -> 4 | AQ7: =SysTime!AQ7 -> 5 | AR7: =SysTime!AR7 -> 6 | AS7: =SysTime!AS7 -> 7 | AT7: =SysTime!AT7 -> 8 | AU7: =SysTime!AU7 -> 9 | AV7: =SysTime!AV7 -> 10 | AW7: =SysTime!AW7 -> 11 | AX7: =SysTime!AX7 -> 12 | AY7: =SysTime!AY7 -> 1 | AZ7: =SysTime!AZ7 -> 2 | BA7: =SysTime!BA7 -> 3 | BB7: =SysTime!BB7 -> 4 | BC7: =SysTime!BC7 -> 5 | BD7: =SysTime!BD7 -> 6 | BE7: =SysTime!BE7 -> 7 | BF7: =SysTime!BF7 -> 8 | BG7: =SysTime!BG7 -> 9 | BH7: =SysTime!BH7 -> 10 | BI7: =SysTime!BI7 -> 11 | BJ7: =SysTime!BJ7 -> 12 | BL7: =SysTime!BL7 -> 1 | BM7: =SysTime!BM7 -> 2 | BN7: =SysTime!BN7 -> 3
A8: =SUM(A9:A29) -> 0 | B8: =SUM(B9:B29) -> 0 | G8: Units | I8: BoA / DL Ref | M8: Comments
D10: Section 1
E12: 1.1 Sub Section 1.1
F14: Sub Heading
F16: Label 1 | G16: Unit 1 | I16: Ref 1
D18: Section 2
E20: 2.1 Sub Section 2.1
F22: Sub Heading
F24: Label 1 | G24: Unit 1 | I24: Ref 2
F25: Label 2 | G25: Unit 1 | I25: Ref 3
F26: Label 3 | G26: Unit 1 | I26: Ref 4
F27: Label 4 | G27: Unit 1 | I27: Ref 5
D29: END OF WORKSHEET - INSERT ROWS ABOVE

Sheet BlankTemp
C1: THIS SHOULD COST MODEL BUILD TEMPLATE IS FOR GUIDANCE ONLY. PLEASE REMOVE GCF BRANDING AND UPDATE TO REFLECT THE BRANDING OF YOUR CONTRACTING AUTHORITY PRIOR TO POPULATING IT.
C2: =cstProjectName -> SCM Build Template
C3: =MID(CELL("filename",A1),FIND("]",CELL("filename",A1))+1,256)&" Sheet" -> BlankTemp Sheet
C4: =IF(ISBLANK(cstProtectiveMarking),"",cstProtectiveMarking) -> OFFICIAL
C5: =HYPERLINK("#'Contents'!A1",sysChkWord) -> All Checks OK
C6: =HYPERLINK("#'Contents'!A1","Click for Contents") -> Click for Contents
A8: =SUM(A9:A28) -> 0 | B8: =SUM(B9:B28) -> 0
D10: Section 1
D28: END OF WORKSHEET - INSERT ROWS ABOVE

Sheet Admin>>

Sheet SysConfig
C1: THIS SHOULD COST MODEL BUILD TEMPLATE IS FOR GUIDANCE ONLY. PLEASE REMOVE GCF BRANDING AND UPDATE TO REFLECT THE BRANDING OF YOUR CONTRACTING AUTHORITY PRIOR TO POPULATING IT.
C2: =cstProjectName -> SCM Build Template
C3: =MID(CELL("filename",A1),FIND("]",CELL("filename",A1))+1,256)&" Sheet" -> SysConfig Sheet
C4: =IF(ISBLANK(cstProtectiveMarking),"",cstProtectiveMarking) -> OFFICIAL
C5: =HYPERLINK("#'Contents'!A1",sysChkWord) -> All Checks OK
C6: =HYPERLINK("#'Contents'!A1","Click for Contents") -> Click for Contents
A8: =SUM(A9:A65) -> 0 | B8: =SUM(B9:B65) -> 0
D10: 1 General Details
E12: Project Name | F12: SCM Build Template
E13: Contracting Authority | F13: Cabinet Office - Sourcing Programme
E14: IMA Score
E15: Model Developer | F15: TBC - update on 'SysConfig' sheet
E16: Contact Details | F16: sourcing.programme@cabinetoffice.gov.uk
E17: Model Owner | F17: TBC - update on 'SysConfig' sheet
E18: Protective Marking | F18: OFFICIAL
D20: 2 Setup
E22: Model Start Date (dd/mm/yy) | F22: 2021-04-01
D24: 3 Lists
F25: This section can be used to enter lists (e.g., for Data Validation) that may be required as the SCM is developed
D27: 4 Named Constants
E29: cstThou | F29: 1000
E30: cstMil | F30: 1000000
E31: cstDaysInWk | F31: 7
E32: cstWeeksInYr | F32: 52
E33: cstMonthsInQtr | F33: 3
E34: cstMonthsInYr | F34: 12
D36: 5 Error Check Settings
B38: =IF(eTol="",1,0) -> 0 | E38: Error Tolerance | F38: 0.0001
E40: Error Check Wording | F40: =IF(AND(sysChk=0,sysWarn=0),"All Checks OK",IF(sysChk<>0,sysChk&" Error"&IF(sysChk=1," ","s "),"")&IF(sysWarn<>0,sysWarn&" Warning"&IF(sysWarn=1,"","s"),"")) -> All Checks OK
D42: 6 Named Ranges List
E44: Name | F44: Address | G44: Purpose
E45: cstDaysInWk | F45: SysConfig!$F$31 | G45: Number of days in week constant
E46: cstMil | F46: SysConfig!$F$30 | G46: Million constant
E47: cstMonthsInQtr | F47: SysConfig!$F$33 | G47: Number of months in quarter constant
E48: cstMonthsInYr | F48: SysConfig!$F$34 | G48: Number of months in year constant
E49: cstProjectName | F49: SysConfig!$F$12 | G49: Name of Project
E50: cstProtectiveMarking | F50: SysConfig!$F$18 | G50: Protective Marking wording
E51: cstThou | F51: SysConfig!$F$29 | G51: Thousand constant
E52: cstWeeksInYr | F52: SysConfig!$F$32 | G52: Number of weeks in year constant
E53: eTol | F53: SysConfig!$F$38 | G53: Error Tolerance constant
E54: rngBoA | F54: BoA-DL'!$F$131:$Y$142 | G54: Book of Assumptions / Data Log range
E55: rngBoARowsToAdd | F55: BoA-DL'!$F$129 | G55: Book of Assumptions / Data Log number of rows to add range
E56: rngChangeLog | F56: VersionControlLog!$G$71:$V$75 | G56: Change Log range
E57: rngContents | F57: Contents!$E$12:$I$25 | G57: Contents Page range
E58: rngNamedRanges | F58: SysConfig!$E$44:$G$59 | G58: This table
E59: rngNewChange | F59: VersionControlLog!$G$66:$V$67 | G59: Change Log new change entry range
E60: sysChk | F60: Contents!$H$27 | G60: Number of Errors in model
E61: sysChkWord | F61: SysConfig!$F$40 | G61: Master Error Check wording
E62: sysWarn | F62: Contents!$I$27 | G62: Number of Warnings in model
E63: INSERT NEW ROWS ABOVE THIS ROW
D65: END OF WORKSHEET - INSERT ROWS ABOVE

Sheet SysTime
C1: THIS SHOULD COST MODEL BUILD TEMPLATE IS FOR GUIDANCE ONLY. PLEASE REMOVE GCF BRANDING AND UPDATE TO REFLECT THE BRANDING OF YOUR CONTRACTING AUTHORITY PRIOR TO POPULATING IT.
C2: =cstProjectName -> SCM Build Template | Z2: Period Start | AA2: =IF(COLUMN()=COLUMN($AA:$AA),SysConfig!$F$22,Z3+1) -> 2021-04-01 | AB2: =IF(COLUMN()=COLUMN($AA:$AA),SysConfig!$F$22,AA3+1) -> 2021-05-01 | AC2: =IF(COLUMN()=COLUMN($AA:$AA),SysConfig!$F$22,AB3+1) -> 2021-06-01 | AD2: =IF(COLUMN()=COLUMN($AA:$AA),SysConfig!$F$22,AC3+1) -> 2021-07-01 | AE2: =IF(COLUMN()=COLUMN($AA:$AA),SysConfig!$F$22,AD3+1) -> 2021-08-01 | AF2: =IF(COLUMN()=COLUMN($AA:$AA),SysConfig!$F$22,AE3+1) -> 2021-09-01 | AG2: =IF(COLUMN()=COLUMN($AA:$AA),SysConfig!$F$22,AF3+1) -> 2021-10-01 | AH2: =IF(COLUMN()=COLUMN($AA:$AA),SysConfig!$F$22,AG3+1) -> 2021-11-01 | AI2: =IF(COLUMN()=COLUMN($AA:$AA),SysConfig!$F$22,AH3+1) -> 2021-12-01 | AJ2: =IF(COLUMN()=COLUMN($AA:$AA),SysConfig!$F$22,AI3+1) -> 2022-01-01 | AK2: =IF(COLUMN()=COLUMN($AA:$AA),SysConfig!$F$22,AJ3+1) -> 2022-02-01 | AL2: =IF(COLUMN()=COLUMN($AA:$AA),SysConfig!$F$22,AK3+1) -> 2022-03-01 | AM2: =IF(COLUMN()=COLUMN($AA:$AA),SysConfig!$F$22,AL3+1) -> 2022-04-01 | AN2: =IF(COLUMN()=COLUMN($AA:$AA),SysConfig!$F$22,AM3+1) -> 2022-05-01 | AO2: =IF(COLUMN()=COLUMN($AA:$AA),SysConfig!$F$22,AN3+1) -> 2022-06-01 | AP2: =IF(COLUMN()=COLUMN($AA:$AA),SysConfig!$F$22,AO3+1) -> 2022-07-01 | AQ2: =IF(COLUMN()=COLUMN($AA:$AA),SysConfig!$F$22,AP3+1) -> 2022-08-01 | AR2: =IF(COLUMN()=COLUMN($AA:$AA),SysConfig!$F$22,AQ3+1) -> 2022-09-01 | AS2: =IF(COLUMN()=COLUMN($AA:$AA),SysConfig!$F$22,AR3+1) -> 2022-10-01 | AT2: =IF(COLUMN()=COLUMN($AA:$AA),SysConfig!$F$22,AS3+1) -> 2022-11-01 | AU2: =IF(COLUMN()=COLUMN($AA:$AA),SysConfig!$F$22,AT3+1) -> 2022-12-01 | AV2: =IF(COLUMN()=COLUMN($AA:$AA),SysConfig!$F$22,AU3+1) -> 2023-01-01 | AW2: =IF(COLUMN()=COLUMN($AA:$AA),SysConfig!$F$22,AV3+1) -> 2023-02-01 | AX2: =IF(COLUMN()=COLUMN($AA:$AA),SysConfig!$F$22,AW3+1) -> 2023-03-01 | AY2: =IF(COLUMN()=COLUMN($AA:$AA),SysConfig!$F$22,AX3+1) -> 2023-04-01 | AZ2: =IF(COLUMN()=COLUMN($AA:$AA),SysConfig!$F$22,AY3+1) -> 2023-05-01 | BA2: =IF(COLUMN()=COLUMN($AA:$AA),SysConfig!$F$22,AZ3+1) -> 2023-06-01 | BB2: =IF(COLUMN()=COLUMN($AA:$AA),SysConfig!$F$22,BA3+1) -> 2023-07-01 | BC2: =IF(COLUMN()=COLUMN($AA:$AA),SysConfig!$F$22,BB3+1) -> 2023-08-01 | BD2: =IF(COLUMN()=COLUMN($AA:$AA),SysConfig!$F$22,BC3+1) -> 2023-09-01 | BE2: =IF(COLUMN()=COLUMN($AA:$AA),SysConfig!$F$22,BD3+1) -> 2023-10-01 | BF2: =IF(COLUMN()=COLUMN($AA:$AA),SysConfig!$F$22,BE3+1) -> 2023-11-01 | BG2: =IF(COLUMN()=COLUMN($AA:$AA),SysConfig!$F$22,BF3+1) -> 2023-12-01 | BH2: =IF(COLUMN()=COLUMN($AA:$AA),SysConfig!$F$22,BG3+1) -> 2024-01-01 | BI2: =IF(COLUMN()=COLUMN($AA:$AA),SysConfig!$F$22,BH3+1) -> 2024-02-01 | BJ2: =IF(COLUMN()=COLUMN($AA:$AA),SysConfig!$F$22,BI3+1) -> 2024-03-01 | BL2: =IF(COLUMN()=COLUMN($BL:$BL),SysConfig!$F$22,BK3+1) -> 2021-04-01 | BM2: =IF(COLUMN()=COLUMN($BL:$BL),SysConfig!$F$22,BL3+1) -> 2022-04-01 | BN2: =IF(COLUMN()=COLUMN($BL:$BL),SysConfig!$F$22,BM3+1) -> 2023-04-01
C3: =MID(CELL("filename",A1),FIND("]",CELL("filename",A1))+1,256)&" Sheet" -> SysTime Sheet | Z3: Period End | AA3: =EDATE(AA2,1)-1 -> 2021-04-30 | AB3: =EDATE(AB2,1)-1 -> 2021-05-31 | AC3: 2021-06-30 | AD3: 2021-07-31 | AE3: 2021-08-31 | AF3: 2021-09-30 | AG3: 2021-10-31 | AH3: 2021-11-30 | AI3: 2021-12-31 | AJ3: 2022-01-31 | AK3: 2022-02-28 | AL3: 2022-03-31 | AM3: 2022-04-30 | AN3: 2022-05-31 | AO3: 2022-06-30 | AP3: 2022-07-31 | AQ3: 2022-08-31 | AR3: 2022-09-30 | AS3: 2022-10-31 | AT3: 2022-11-30 | AU3: 2022-12-31 | AV3: 2023-01-31 | AW3: 2023-02-28 | AX3: 2023-03-31 | AY3: 2023-04-30 | AZ3: 2023-05-31 | BA3: 2023-06-30 | BB3: 2023-07-31 | BC3: 2023-08-31 | BD3: 2023-09-30 | BE3: 2023-10-31 | BF3: 2023-11-30 | BG3: 2023-12-31 | BH3: 2024-01-31 | BI3: 2024-02-29 | BJ3: 2024-03-31 | BL3: =EDATE(BL2,cstMonthsInYr)-1 -> 2022-03-31 | BM3: =EDATE(BM2,cstMonthsInYr)-1 -> 2023-03-31 | BN3: 2024-03-31
C4: =IF(ISBLANK(cstProtectiveMarking),"",cstProtectiveMarking) -> OFFICIAL | Z4: Timeline | AA4: Monthly | AB4: Monthly | AC4: Monthly | AD4: Monthly | AE4: Monthly | AF4: Monthly | AG4: Monthly | AH4: Monthly | AI4: Monthly | AJ4: Monthly | AK4: Monthly | AL4: Monthly | AM4: Monthly | AN4: Monthly | AO4: Monthly | AP4: Monthly | AQ4: Monthly | AR4: Monthly | AS4: Monthly | AT4: Monthly | AU4: Monthly | AV4: Monthly | AW4: Monthly | AX4: Monthly | AY4: Monthly | AZ4: Monthly | BA4: Monthly | BB4: Monthly | BC4: Monthly | BD4: Monthly | BE4: Monthly | BF4: Monthly | BG4: Monthly | BH4: Monthly | BI4: Monthly | BJ4: Monthly | BL4: Annual | BM4: Annual | BN4: Annual
C5: =HYPERLINK("#'Contents'!A1",sysChkWord) -> All Checks OK | Z5: Period index | AA5: =IF(COLUMN()=COLUMN($AA:$AA),1,Z5+1) -> 1 | AB5: =IF(COLUMN()=COLUMN($AA:$AA),1,AA5+1) -> 2 | AC5: 3 | AD5: 4 | AE5: 5 | AF5: =IF(COLUMN()=COLUMN($AA:$AA),1,AE5+1) -> 6 | AG5: 7 | AH5: 8 | AI5: 9 | AJ5: 10 | AK5: 11 | AL5: 12 | AM5: 13 | AN5: 14 | AO5: 15 | AP5: 16 | AQ5: 17 | AR5: 18 | AS5: 19 | AT5: 20 | AU5: 21 | AV5: 22 | AW5: 23 | AX5: 24 | AY5: 25 | AZ5: 26 | BA5: 27 | BB5: 28 | BC5: 29 | BD5: 30 | BE5: 31 | BF5: 32 | BG5: 33 | BH5: 34 | BI5: 35 | BJ5: 36 | BL5: =IF(COLUMN()=COLUMN($BL:$BL),1,BK5+1) -> 1 | BM5: 2 | BN5: 3
C6: =HYPERLINK("#'Contents'!A1","Click for Contents") -> Click for Contents | Z6: Year index | AA6: =IF(COLUMN()=COLUMN($AA:$AA),1,IF(Z7=cstMonthsInYr,Z6+1,Z6)) -> 1 | AB6: 1 | AC6: 1 | AD6: 1 | AE6: =IF(COLUMN()=COLUMN($AA:$AA),1,IF(AD7=cstMonthsInYr,AD6+1,AD6)) -> 1 | AF6: 1 | AG6: 1 | AH6: 1 | AI6: 1 | AJ6: 1 | AK6: 1 | AL6: 1 | AM6: 2 | AN6: 2 | AO6: 2 | AP6: 2 | AQ6: 2 | AR6: 2 | AS6: 2 | AT6: 2 | AU6: 2 | AV6: 2 | AW6: 2 | AX6: 2 | AY6: 3 | AZ6: 3 | BA6: 3 | BB6: 3 | BC6: 3 | BD6: 3 | BE6: 3 | BF6: 3 | BG6: 3 | BH6: 3 | BI6: 3 | BJ6: 3 | BL6: 1 | BM6: 2 | BN6: 3
Z7: Relative period | AA7: =IF(COLUMN()=COLUMN($AA:$AA),1,IF(Z7=cstMonthsInYr,1,Z7+1)) -> 1 | AB7: 2 | AC7: 3 | AD7: 4 | AE7: 5 | AF7: 6 | AG7: 7 | AH7: 8 | AI7: 9 | AJ7: 10 | AK7: 11 | AL7: 12 | AM7: 1 | AN7: 2 | AO7: 3 | AP7: 4 | AQ7: 5 | AR7: 6 | AS7: 7 | AT7: 8 | AU7: 9 | AV7: 10 | AW7: 11 | AX7: 12 | AY7: 1 | AZ7: 2 | BA7: 3 | BB7: 4 | BC7: 5 | BD7: 6 | BE7: 7 | BF7: 8 | BG7: 9 | BH7: 10 | BI7: 11 | BJ7: 12 | BL7: 1 | BM7: 2 | BN7: 3
A8: =SUM(A9:A11) -> 0 | B8: =SUM(B9:B11) -> 0
D10: Note - the timeline start date is updated on the SysConfig sheet (see Section 2 Setup / Model Start Date)
D11: END OF WORKSHEET - INSERT ROWS ABOVE
